Workbook

Sheet Front Sheet
A1: Dementia in Lancashire
A3: Data Explorer
B19: Further information about the data domains can be found here : | H19: Using data to improve dementia care in England
A22: Updated : January 2018

Sheet Index
A1: Dementia data tool
A3: Index
B6: Worksheet | D6: Description | R6: Time frame
B8: Population profile | D8: Dementia population profile, looking at the gender, age and ethnicity of dementia patients in Lancashre - Inclues Morecambe Bay CCG | R8: 2017-04-01
B11: Recorded prevalence | D11: Recorded dementia prevalence as per QoF - Inclues Morecambe Bay CCG | R11: April 2016 to March 2017
B14: QOF monthly extracts | D14: Monthly recorded dementia prevalence, extracted from GP systems by the Office for National Statistics (ONS) - Inclues Morecambe Bay CCG | R14: 2017-04-01
B17: Estimated prevalence | D17: CCG and district breakdown of estimated dementia prevalence. | R17: 2017
D18: Uses the NHS England methodology that combines the Alzheimer's Society 2014 (Delphi) aged 30-64 estimates with the CFAS II 65+ estimates, applying them to the 2017 projected population estimates for the district estimates - Inclues Morecambe Bay CCG
B20: Assessments and care plans | D20: Details of the numbers of patients reciging and declining assessments and care plans - Inclues Morecambe Bay CCG | R20: 2017-04-01
B23: Dementia diagnosis rates | D23: The dementia diagnosis rates have been calculated using the monthly HSCIC QoF extracts and the CFAS II estimated aged 65+ dementia prevalence. - Inclues Morecambe Bay CCG | R23: April 2015 to March 2017
B26: Social care support | D26: Total number of individuals who received social care support, who were recorded as having dementia | R26: April 2016 to March 2017
B29: Hospital activity | D29: Detailed breakdown of hospital activity, relating to patients with a recorded dementia diagnoses. Provided by the NHS Midlands and Lancashire Commissioning Support Unit. | R29: January 2016 to December 2016
B32: Dementia prescribing | D32: CCG breakdown of dementia prescribing figures | R32: April 2016 - March 2017
B35: End of life | D35: End of life analysis of patients, with a recorded dementia diagnoses | R35: January 2016 to December 2016
B38: Dementia prevalence projections | D38: Dementia projections based on the NHS England estimated prevalence methodology and the ONS population projections | R38: 2017 and 2026

Sheet Dementia population profile
A1: Dementia in Lancashire
A3: Dementia population profile
A4: =B5 -> NHS Morecambe Bay CCG
B5: NHS Morecambe Bay CCG | G5: << Select geography
A20: Source : Estimated 30+ dementia prevalence by gender calculated using the GP practice list size April 2017 | K20: Source : April 2017 QoF CCG level dementia prevalence by ethnicity
A37: Source : GP Practice list size April 2017 & Estimated dementia prevalence by age band | K37: Source : April 2017 QoF CCG level dementia prevalence

Sheet Pop profilfe backing data (hidden)
L1: England
L2: Lancashire-14
L3: Lancashire-12
A4: CCG_NAME | B4: Not defined | C4: White | D4: Asian / Asian British | E4: Mixed Or Multiple ethnic groups | F4: Other | G4: Black / African / Caribbean /Black British | H4: Grand Total | L4: NHS Blackburn with Darwen CCG
A5: NHS Blackburn with Darwen CCG | B5: 617 | C5: 285 | D5: 96 | E5: 2 | F5: 3 | G5: 0 | H5: 1003 | L5: NHS Blackpool CCG
A6: NHS Blackpool CCG | B6: 1086 | C6: 696 | D6: 5 | E6: 1 | F6: 6 | G6: 0 | H6: 1794 | L6: NHS Chorley and South Ribble CCG
A7: NHS Chorley and South Ribble CCG | B7: 1129 | C7: 255 | D7: 7 | E7: 2 | F7: 0 | G7: 0 | H7: 1393 | L7: NHS East Lancashire CCG
A8: NHS East Lancashire CCG | B8: 2144 | C8: 684 | D8: 85 | E8: 5 | F8: 7 | G8: 0 | H8: 2925 | L8: NHS Fylde & Wyre CCG
A9: NHS Fylde & Wyre CCG | B9: 1505 | C9: 496 | D9: 1 | E9: 2 | F9: 1 | G9: 0 | H9: 2005 | L9: NHS Greater Preston CCG
A10: NHS Greater Preston CCG | B10: 1053 | C10: 395 | D10: 37 | E10: 3 | F10: 3 | G10: 0 | H10: 1491 | L10: NHS Morecambe Bay CCG
A11: NHS Morecambe Bay CCG | B11: 3179 | C11: 594 | D11: 7 | E11: 1 | F11: 0 | G11: 0 | H11: 3781 | L11: NHS West Lancashire CCG
A12: NHS West Lancashire CCG | B12: 771 | C12: 285 | D12: 2 | E12: 1 | F12: 0 | G12: 0 | H12: 1059
A13: Lancashire-14 | B13: =SUM(B5:B12) -> 11484 | C13: 3690 | D13: 240 | E13: 17 | F13: 20 | G13: 0 | H13: 15451
A14: Lancashire-12 | B14: =SUM(B7:B12) -> 9781 | C14: 2709 | D14: 139 | E14: 14 | F14: 11 | G14: 0 | H14: 12654
A15: England | B15: 333637 | C15: 94990 | D15: 9652 | E15: 1863 | F15: 1853 | G15: 10 | H15: =SUM(B15:G15) -> 442005
A16: April 2017 CCG level dementia prevalence by ethnicity
B20: F.count | C20: Females | D20: M.count | E20: Males
A21: England | B21: 424427.3564 | C21: =B21/SUM(B21,D21) -> 0.6298906412 | D21: 249383.8239 | E21: =D21/SUM(B21,D21) -> 0.3701093588
A22: Lancashire-14 | B22: 13918.46176 | C22: 0.6273482587 | D22: 8267.718831 | E22: 0.3726517413
A23: Lancashire-12 | B23: 11473.51622 | C23: 0.6278589512 | D23: 6800.518416 | E23: 0.3721410488
A24: NHS Blackburn with Darwen CCG | B24: 996.322256 | C24: 0.6242102096 | D24: 599.81033 | E24: 0.3757897904
A25: NHS Blackpool CCG | B25: 1448.623284 | C25: 0.6254813998 | D25: 867.390085 | E25: 0.3745186002
A26: NHS Chorley and South Ribble CCG | B26: 1358.758004 | C26: 0.6196804485 | D26: 833.917281 | E26: 0.3803195515
A27: NHS East Lancashire CCG | B27: 2706.158288 | C27: 0.6283135573 | D27: 1600.860487 | E27: 0.3716864427
A28: NHS Fylde & Wyre CCG | B28: 1720.57046 | C28: 0.6385354319 | D28: 973.987076 | E28: 0.3614645681
A29: NHS Greater Preston CCG | B29: 1449.766154 | C29: 0.6244572673 | D29: 871.875742 | E29: 0.3755427327
A30: NHS Morecambe Bay CCG | B30: 3303.351515 | C30: 0.6286239606 | D30: 1951.54127 | E30: 0.3713760394
A31: NHS West Lancashire CCG | B31: 934.911801 | C31: 0.6219277035 | D31: 568.33656 | E31: 0.3780722965
A32: Estimated dementia 30+ prevalence by gender calculated using the GP practice list size April 2017
A36: All persons - dementia estimate calculated using the GP practice list size April 2017 | B36: 30-34 | C36: 35-39 | D36: 40-44 | E36: 45-49 | F36: 50-54 | G36: 55-59 | H36: 60-64 | I36: 65-69 | J36: 70-74 | K36: 75-79 | L36: 80-84 | M36: 85-89 | N36: 90+
A37: England | B37: 0.0005768195725 | C37: 0.0004649902586 | D37: 0.0007667375135 | E37: 0.001816510228 | F37: 0.003603824277 | G37: 0.007446918492 | H37: 0.04081516425 | I37: 0.06642727711 | J37: 0.1048840492 | K37: 0.1554154622 | L37: 0.202756839 | M37: 0.2029126289 | N37: 0.212112779
A38: Lancashire-14 | B38: 0.000457068983 | C38: 0.0003648288612 | D38: 0.0006424020548 | E38: 0.001670151689 | F38: 0.003418418672 | G38: 0.00729248684 | H38: 0.04089924339 | I38: 0.06885096755 | J38: 0.1095542331 | K38: 0.1621362444 | L38: 0.2039995564 | M38: 0.1991031751 | N38: 0.2016112229
A39: Lancashire-12 | B39: 0.0004346028207 | C39: 0.0003494344914 | D39: 0.0006224171742 | E39: 0.001619477668 | F39: 0.003340790264 | G39: 0.007155613667 | H39: 0.04047086561 | I39: 0.06902712099 | J39: 0.110238655 | K39: 0.1620552909 | L39: 0.2036144767 | M39: 0.19879611 | N39: 0.2022751447
A40: NHS Blackburn with Darwen CCG | B40: 0.0007330048959 | C40: 0.000583761655 | D40: 0.0009542189749 | E40: 0.002289760908 | F40: 0.004203972188 | G40: 0.008833184112 | H40: 0.04814825577 | I40: 0.0729676225 | J40: 0.1080455355 | K40: 0.1605731267 | L40: 0.2001707144 | M40: 0.1972423862 | N40: 0.1952544561
A41: NHS Blackpool CCG | B41: 0.0004441662616 | C41: 0.0003354125716 | D41: 0.0005851930814 | E41: 0.0016429672 | F41: 0.003489548078 | G41: 0.007310650805 | H41: 0.03928345199 | I41: 0.06462397929 | J41: 0.1051936933 | K41: 0.1638522493 | L41: 0.2096766826 | M41: 0.2028084148 | N41: 0.2007535907
A42: NHS Chorley and South Ribble CCG | B42: 0.0004911579965 | C42: 0.0004042472709 | D42: 0.000738737747 | E42: 0.001870170211 | F42: 0.003760720092 | G42: 0.007745527172 | H42: 0.04378350076 | I42: 0.07583886275 | J42: 0.1201796736 | K42: 0.1708898726 | L42: 0.1980024142 | M42: 0.1834503279 | N42: 0.1928447878
A43: NHS East Lancashire CCG | B43: 0.0005371190888 | C43: 0.0004289110627 | D43: 0.0007363000176 | E43: 0.001879088163 | F43: 0.003684735505 | G43: 0.007941064524 | H43: 0.04474278151 | I43: 0.07474265073 | J43: 0.1135530225 | K43: 0.1583206472 | L43: 0.1977216828 | M43: 0.1940822745 | N43: 0.2016297224
A44: NHS Fylde & Wyre CCG | B44: 0.0002744265024 | C44: 0.0002231520359 | D44: 0.0004153784007 | E44: 0.001149775412 | F44: 0.002531688008 | G44: 0.005712108869 | H44: 0.03358102352 | I44: 0.05975155396 | J44: 0.1038036844 | K44: 0.1573111705 | L44: 0.2077714031 | M44: 0.2165561478 | N44: 0.2109184875
A45: NHS Greater Preston CCG | B45: 0.0005771523172 | C45: 0.0004546230846 | D45: 0.0007817682835 | E45: 0.00192160514 | F45: 0.00387679427 | G45: 0.007936060265 | H45: 0.04318107809 | I45: 0.06729203167 | J45: 0.1038962987 | K45: 0.1602452129 | L45: 0.2072795985 | M45: 0.2005313571 | N45: 0.2020264197
A46: NHS Morecambe Bay CCG | B46: 0.0003589414812 | C46: 0.0002900788013 | D46: 0.0005214207239 | E46: 0.001407795421 | F46: 0.003028875117 | G46: 0.006640290569 | H46: 0.03790181991 | I46: 0.06669784034 | J46: 0.1084142005 | K46: 0.1624352836 | L46: 0.2036623855 | M46: 0.2005352046 | N46: 0.2081058634
A47: NHS West Lancashire CCG | B47: 0.0003898337861 | C47: 0.0003131658163 | D47: 0.0006045215306 | E47: 0.001625292309 | F47: 0.00345567182 | G47: 0.007228267319 | H47: 0.04054419854 | I47: 0.07016405455 | J47: 0.1139498997 | K47: 0.1698401985 | L47: 0.2154048582 | M47: 0.1940916801 | N47: 0.1823883578
A49: April 2017 list size | B49: 30-34 | C49: 35-39 | D49: 40-44 | E49: 45-49 | F49: 50-54 | G49: 55-59 | H49: 60-64 | I49: 65-69 | J49: 70-74 | K49: 75-79 | L49: 80-84 | M49: 85-89 | N49: 90+
A50: England | B50: 0.114062495 | C50: 0.1089443416 | D50: 0.1020720098 | E50: 0.1116099767 | F50: 0.1111570156 | G50: 0.09751675069 | H50: 0.08249697637 | I50: 0.08020015171 | J50: 0.06962456949 | K50: 0.0492770885 | L50: 0.03695137752 | M50: 0.02302245721 | N50: 0.01306478983
A51: Lancashire-14 | B51: 0.09755193436 | C51: 0.0922507854 | D51: 0.09202076224 | E51: 0.1107508398 | F51: 0.1137429102 | G51: 0.1029672102 | H51: 0.0891976704 | I51: 0.08991162687 | J51: 0.07835296345 | K51: 0.05550370205 | L51: 0.04011692254 | M51: 0.0243249484 | N51: 0.01330772409
A52: Lancashire-12 | B52: 0.09462948392 | C52: 0.09007405719 | D52: 0.09070635963 | E52: 0.1096250238 | F52: 0.1134582889 | G52: 0.1032504948 | H52: 0.0900499486 | I52: 0.0919293224 | J52: 0.08044925252 | K52: 0.05659709513 | L52: 0.04084651817 | M52: 0.02478033791 | N52: 0.01360381705
A53: NHS Blackburn with Darwen CCG | B53: 0.1234200239 | C53: 0.1165714397 | D53: 0.1093251331 | E53: 0.1195980094 | F53: 0.1102272838 | G53: 0.09800459806 | H53: 0.08283294693 | I53: 0.07545083279 | J53: 0.06099702193 | K53: 0.04339053421 | L53: 0.03104174144 | M53: 0.01895486337 | N53: 0.01018557141
A54: NHS Blackpool CCG | B54: 0.09755353282 | C54: 0.08771012067 | D54: 0.08692543768 | E54: 0.1117562949 | F54: 0.1191671898 | G54: 0.1051736765 | H54: 0.08813733696 | I54: 0.08685568808 | J54: 0.07727383693 | K54: 0.05769163702 | L54: 0.04246878705 | M54: 0.02552835321 | N54: 0.01375810839
A55: NHS Chorley and South Ribble CCG | B55: 0.09669635922 | C55: 0.09420912592 | D55: 0.09677899155 | E55: 0.1145449437 | F55: 0.1155695847 | G55: 0.1009271348 | H55: 0.08814391248 | I55: 0.09145746914 | J55: 0.07927746286 | K55: 0.05402502107 | L55: 0.03591201309 | M55: 0.02067461039 | N55: 0.01178337107
A56: NHS East Lancashire CCG | B56: 0.1047742817 | C56: 0.09886786794 | D56: 0.09633535768 | E56: 0.1138005148 | F56: 0.1120427528 | G56: 0.1024916902 | H56: 0.08918768067 | I56: 0.08946259132 | J56: 0.07421754596 | K56: 0.04956722399 | L56: 0.03555094594 | M56: 0.02163463541 | N56: 0.01206691159
A57: NHS Fylde & Wyre CCG | B57: 0.07546107279 | C57: 0.07257027547 | D57: 0.07556431555 | E57: 0.09847482284 | F57: 0.108733399 | G57: 0.1049134169 | H57: 0.0943638838 | I57: 0.1003144211 | J57: 0.09579051105 | K57: 0.06919142147 | L57: 0.05266319396 | M57: 0.03411703975 | N57: 0.01784222629
A58: NHS Greater Preston CCG | B58: 0.1109960008 | C58: 0.1038583127 | D58: 0.1021215007 | E58: 0.1147819463 | F58: 0.1161531137 | G58: 0.1009026852 | H58: 0.08485240906 | I58: 0.07910874119 | J58: 0.06698914492 | K58: 0.04940773186 | L58: 0.03667872786 | M58: 0.02209864788 | N58: 0.0120510379
A59: NHS Morecambe Bay CCG | B59: 0.08573291046 | C59: 0.08211421862 | D59: 0.08330094897 | E59: 0.1046035945 | F59: 0.112864742 | G59: 0.1050548863 | H59: 0.0924730374 | I59: 0.09729935273 | J59: 0.08669817352 | K59: 0.0622406639 | L59: 0.0448032493 | M59: 0.02742015687 | N59: 0.01539406551
A60: NHS West Lancashire CCG | B60: 0.08570967178 | C60: 0.0813091281 | D60: 0.08802433083 | E60: 0.1111709214 | F60: 0.1185186182 | G60: 0.1054381031 | H60: 0.09113297178 | I60: 0.09399938096 | J60: 0.08414862264 | K60: 0.05996581841 | L60: 0.04366900375 | M60: 0.02447886528 | N60: 0.01243456378
A61: CCG name | B61: Early onset (<65) | C61: DEMENTIA_REGISTER_65_PLUS | D61: Early onset (<65) | E61: 65+
A62: England | B62: 37390.43235 | C62: 636420.748 | D62: =B62/SUM(B62:C62) -> 0.05549096459 | E62: =C62/SUM(B62:C62) -> 0.9445090354
A63: Lancashire-14 | B63: =SUM(B64:B66) -> 565 | C63: =SUM(C64:C66) -> 14876 | D63: =B63/SUM(B63:C63) -> 0.03659089437 | E63: =C63/SUM(B63:C63) -> 0.9634091056
A64: Lancashire-12 | B64: =SUM(B67:B72) -> 445 | C64: =SUM(C67:C72) -> 12196 | D64: 0.03520291116 | E64: 0.9647970888
A65: NHS Blackburn with Darwen CCG | B65: 54 | C65: 953 | D65: 0.05362462761 | E65: 0.9463753724
A66: NHS Blackpool CCG | B66: 66 | C66: 1727 | D66: 0.03680981595 | E66: 0.963190184
A67: NHS Chorley and South Ribble CCG | B67: 48 | C67: 1407 | D67: 0.03298969072 | E67: 0.9670103093
A68: NHS East Lancashire CCG | B68: 121 | C68: 2716 | D68: 0.04265068735 | E68: 0.9573493127
A69: NHS Fylde & Wyre CCG | B69: 56 | C69: 1959 | D69: 0.02779156328 | E69: 0.9722084367
A70: NHS Greater Preston CCG | B70: 60 | C70: 1440 | D70: 0.04 | E70: 0.96
A71: NHS Morecambe Bay CCG | B71: 122 | C71: 3642 | D71: 0.03241232731 | E71: 0.9675876727
A72: NHS West Lancashire CCG | B72: 38 | C72: 1032 | D72: =B72/SUM(B72:C72) -> 0.03551401869 | E72: =C72/SUM(B72:C72) -> 0.9644859813
A73: QoF dementia register April 2017
B75: Females | C75: Males
A76: ='Dementia population profile'!$B$5 -> NHS Morecambe Bay CCG | B76: =SUM(IF($A$21:$A$31=$A$76,IF($C$20:$E$20=$B$75,$C$21:$C$31))) -> 0.6286239606 | C76: =SUM(IF($A$21:$A$31=$A$76,IF($B$20:$E$20=C$75,$E$21:$E$31))) -> 0.3713760394
B78: Not defined | C78: White | D78: Asian / Asian British | E78: Mixed Or Multiple ethnic groups | F78: Other | G78: Black / African / Caribbean /Black British
A79: ='Dementia population profile'!$B$5 -> NHS Morecambe Bay CCG | B79: =SUM(IF($A$5:$A$15=$A$79,IF($B$4:$G$4=B78,$B$5:$G$15))) -> 3179 | C79: =SUM(IF($A$5:$A$15=$A$79,IF($B$4:$G$4=C78,$B$5:$G$15))) -> 594 | D79: =SUM(IF($A$5:$A$15=$A$79,IF($B$4:$G$4=D78,$B$5:$G$15))) -> 7 | E79: =SUM(IF($A$5:$A$15=$A$79,IF($B$4:$G$4=E78,$B$5:$G$15))) -> 1 | F79: =SUM(IF($A$5:$A$15=$A$79,IF($B$4:$G$4=F78,$B$5:$G$15))) -> 0 | G79: =SUM(IF($A$5:$A$15=$A$79,IF($B$4:$G$4=G78,$B$5:$G$15))) -> 0
B81: 30-34 | C81: 35-39 | D81: 40-44 | E81: 45-49 | F81: 50-54 | G81: 55-59 | H81: 60-64 | I81: 65-69 | J81: 70-74 | K81: 75-79 | L81: 80-84 | M81: 85-89 | N81: 90+
A82: Estimated prevalence | B82: =SUM(IF($A$37:$A$47=$A$79,IF($B$36:$N$36=B81,$B$37:$N$47))) -> 0.0003589414812 | C82: =SUM(IF($A$37:$A$47=$A$79,IF($B$36:$N$36=C81,$B$37:$N$47))) -> 0.0002900788013 | D82: =SUM(IF($A$37:$A$47=$A$79,IF($B$36:$N$36=D81,$B$37:$N$47))) -> 0.0005214207239 | E82: =SUM(IF($A$37:$A$47=$A$79,IF($B$36:$N$36=E81,$B$37:$N$47))) -> 0.001407795421 | F82: =SUM(IF($A$37:$A$47=$A$79,IF($B$36:$N$36=F81,$B$37:$N$47))) -> 0.003028875117 | G82: =SUM(IF($A$37:$A$47=$A$79,IF($B$36:$N$36=G81,$B$37:$N$47))) -> 0.006640290569 | H82: =SUM(IF($A$37:$A$47=$A$79,IF($B$36:$N$36=H81,$B$37:$N$47))) -> 0.03790181991 | I82: =SUM(IF($A$37:$A$47=$A$79,IF($B$36:$N$36=I81,$B$37:$N$47))) -> 0.06669784034 | J82: =SUM(IF($A$37:$A$47=$A$79,IF($B$36:$N$36=J81,$B$37:$N$47))) -> 0.1084142005 | K82: =SUM(IF($A$37:$A$47=$A$79,IF($B$36:$N$36=K81,$B$37:$N$47))) -> 0.1624352836 | L82: =SUM(IF($A$37:$A$47=$A$79,IF($B$36:$N$36=L81,$B$37:$N$47))) -> 0.2036623855 | M82: =SUM(IF($A$37:$A$47=$A$79,IF($B$36:$N$36=M81,$B$37:$N$47))) -> 0.2005352046 | N82: =SUM(IF($A$37:$A$47=$A$79,IF($B$36:$N$36=N81,$B$37:$N$47))) -> 0.2081058634
A83: % of total registered population | B83: =SUM(IF($A$50:$A$60=$A$79,IF($B$49:$N$49=B81,$B$50:$N$60))) -> 0.08573291046 | C83: =SUM(IF($A$50:$A$60=$A$79,IF($B$49:$N$49=C81,$B$50:$N$60))) -> 0.08211421862 | D83: =SUM(IF($A$50:$A$60=$A$79,IF($B$49:$N$49=D81,$B$50:$N$60))) -> 0.08330094897 | E83: =SUM(IF($A$50:$A$60=$A$79,IF($B$49:$N$49=E81,$B$50:$N$60))) -> 0.1046035945 | F83: =SUM(IF($A$50:$A$60=$A$79,IF($B$49:$N$49=F81,$B$50:$N$60))) -> 0.112864742 | G83: =SUM(IF($A$50:$A$60=$A$79,IF($B$49:$N$49=G81,$B$50:$N$60))) -> 0.1050548863 | H83: =SUM(IF($A$50:$A$60=$A$79,IF($B$49:$N$49=H81,$B$50:$N$60))) -> 0.0924730374 | I83: =SUM(IF($A$50:$A$60=$A$79,IF($B$49:$N$49=I81,$B$50:$N$60))) -> 0.09729935273 | J83: =SUM(IF($A$50:$A$60=$A$79,IF($B$49:$N$49=J81,$B$50:$N$60))) -> 0.08669817352 | K83: =SUM(IF($A$50:$A$60=$A$79,IF($B$49:$N$49=K81,$B$50:$N$60))) -> 0.0622406639 | L83: =SUM(IF($A$50:$A$60=$A$79,IF($B$49:$N$49=L81,$B$50:$N$60))) -> 0.0448032493 | M83: =SUM(IF($A$50:$A$60=$A$79,IF($B$49:$N$49=M81,$B$50:$N$60))) -> 0.02742015687 | N83: =SUM(IF($A$50:$A$60=$A$79,IF($B$49:$N$49=N81,$B$50:$N$60))) -> 0.01539406551
B85: Early onset (<65) | C85: 65+
A86: ='Dementia population profile'!$B$5 -> NHS Morecambe Bay CCG | B86: =SUM(IF($A$62:$A$72=$A$86,IF($D$61:$E$61=B85,$D$62:$E$72))) -> 0.03241232731 | C86: =SUM(IF($A$62:$A$72=$A$86,IF($D$61:$E$61=C85,$D$62:$E$72))) -> 0.9675876727

Sheet Recorded prevalence
A1: Dementia in Lancashire
A3: Recorded prevalence
A5: Recorded dementia prevalence as per QoF 2016/17
A7: GP Taxonomy's Explained
A9: CCG | B9: Registered Population 2016/17 | C9: Dementia Register | D9: Recorded Prevalence | E9: Local rank | F9: 30+ Estimated Prevalence (2017) | G9: 30+ Estimated actuals (2017) | H9: Dementia Gap (%) | I9: % Point difference from national level | J9: % difference from national level | K9: Significance | L9: % Point Difference from 2015/16 prevalence level | M9: Percentage change from 2015/16
A10: NHS Blackburn With Darwen CCG | B10: 173797 | C10: 1104 | D10: =C10/B10 -> 0.006352238531 | E10: 8/8 | F10: 0.01655071863 | G10: 1700.851151 | H10: =(C10-G10)/ABS(C10) -> -0.5406260426 | I10: =D10-$D$423 -> -0.00123784797 | J10: =(D10-$D$423)/ABS($D$423) -> -0.1630874655 | K10: Significantly below | L10: -9.408665659e-05 | M10: -0.0145953941 | P10: G
A11: Practice | B11: Registered Population 2016/17 | C11: Dementia Register | D11: Prevalence | E11: Local rank | F11: 30+ Estimated Prevalence (2017) | G11: 30+ Estimated actuals (2017) | H11: Dementia Gap (%) | I11: % Point difference from national level | J11: % difference from national level | K11: Significance | L11: % Point Difference from 2015/16 prevalence level | M11: Percentage change from 2015/16
A12: P81005 : LITTLE HARWOOD HEALTH CENTRE | B12: 11504 | C12: 90 | D12: =C12/B12 -> 0.007823365786 | E12: =RANK(D12,$D$12:$D$38) & " out of " & COUNTA($D$12:$D$38) -> 7 out of 27 | I12: =D12-$D$423 -> 0.0002332792845 | J12: =(D12-$D$423)/ABS($D$423) -> 0.03073473332 | L12: -0.001224046132 | M12: -0.1352924067
A13: P81022 : WITTON MEDICAL CENTRE | B13: 10214 | C13: 119 | D13: =C13/B13 -> 0.01165067554 | E13: =RANK(D13,$D$12:$D$38) & " out of " & COUNTA($D$12:$D$38) -> 2 out of 27 | I13: 0.004060589042 | J13: 0.5349858716 | K13: Significantly above | L13: -0.0003939778056 | M13: -0.03270976708
A14: P81051 : DARWEN HEALTHCARE | B14: 12398 | C14: 91 | D14: 0.007339893531 | E14: 8 out of 27 | I14: -0.0002501929701 | J14: -0.032963125 | L14: 0.0002759117189 | M14: 0.03905895092
A15: P81058 : ST GEORGES SURGERY | B15: 8943 | C15: 73 | D15: 0.008162808901 | E15: 6 out of 27 | I15: 0.0005727223995 | J15: 0.07545663668 | L15: -0.0004047030937 | M15: -0.0472369451
A16: P81061 : DR A CALOW'S PRACTICE | B16: 4931 | C16: 59 | D16: 0.01196511864 | E16: 1 out of 27 | I16: 0.004375032136 | J16: 0.576414002 | K16: Significantly above | L16: 0.002382367589 | M16: 0.2486099845
A17: P81125 : DR IJ MOODIE'S PRACTICE | B17: 9685 | C17: 95 | D17: 0.009808982963 | E17: 3 out of 27 | I17: 0.002218896462 | J17: 0.2923413932 | K17: Significantly above | L17: 0.001118665 | M17: 0.1287254396
A18: P81140 : DARWEN HEALTHLINK | B18: 13415 | C18: 87 | D18: 0.006485277674 | E18: 11 out of 27 | I18: -0.001104808827 | J18: -0.1455594514 | L18: 0.0001442193214 | M18: 0.02274373037
A19: P81155 : DR TL PHILLIPS' PRACTICE | B19: 4349 | C19: 40 | D19: 0.00919751667 | E19: 4 out of 27 | I19: 0.001607430169 | J19: 0.2117802174 | L19: -0.0005135207525 | M19: -0.05288011261
A20: P81167 : STEPPING STONE PRACTICE | B20: 5198 | C20: 35 | D20: 0.006733358984 | E20: 10 out of 27 | I20: -0.0008567275171 | J20: -0.1128745393 | L20: -0.0004053637632 | M20: -0.05678379418
A21: P81204 : DR DC MATHUR & PTNR | B21: 4805 | C21: 34 | D21: 0.007075962539 | E21: 9 out of 27 | I21: -0.0005141239623 | J21: -0.06773624546 | L21: 0.0002095455602 | M21: 0.03051745341
A22: P81214 : LIMEFIELD SURGERY | B22: 4182 | C22: 37 | D22: 0.008847441416 | E22: 5 out of 27 | I22: 0.001257354914 | J22: 0.165657521 | L22: -0.0002117920339 | M22: -0.0233785822
A23: P81607 : THE MONTAGUE PRACTICE | B23: 6174 | C23: 37 | D23: 0.00599287334 | E23: 13 out of 27 | I23: -0.001597213162 | J23: -0.2104341184 | L23: 0.0005169512912 | M23: 0.09440442844
A24: P81622 : SHIFA SURGERY | B24: 5530 | C24: 22 | D24: 0.003978300181 | E24: 20 out of 27 | I24: -0.00361178632 | J24: -0.4758557521 | K24: Significantly below | L24: -0.0002496409956 | M24: -0.05904552245
A25: P81633 : SPRING-FENISCO HEALTHLINK | B25: 3126 | C25: 19 | D25: 0.006078055022 | E25: 12 out of 27 | I25: -0.001512031479 | J25: -0.1992113632 | L25: -3.32347814e-05 | M25: -0.005438259757
A26: P81643 : DR Z BUX'S PRACTICE | B26: 6082 | C26: 12 | D26: 0.001973035186 | E26: 27 out of 27 | I26: -0.005617051316 | J26: -0.7400510277 | K26: Significantly below | L26: 1.785395553e-05 | M26: 0.009131611565
A27: P81683 : DR A ALAM'S PRACTICE | B27: 8346 | C27: 20 | D27: 0.002396357537 | E27: 25 out of 27 | I27: -0.005193728965 | J27: -0.6842779676 | K27: Significantly below | L27: 0.0005715400183 | M27: 0.31320393
A28: P81694 : FAMILY PRACTICE | B28: 3488 | C28: 9 | D28: 0.002580275229 | E28: 24 out of 27 | I28: -0.005009811272 | J28: -0.6600466636 | K28: Significantly below | L28: -3.166506915e-05 | M28: -0.0121231979
A29: P81704 : DR I TIMSON'S PRACTICE | B29: 4963 | C29: 29 | D29: 0.005843239976 | E29: 14 out of 27 | I29: -0.001746846526 | J29: -0.2301484344 | L29: -0.0009731192864 | M29: -0.1427623235
A30: P81707 : DR N NAGPAL'S PRACTICE | B30: 5506 | C30: 18 | D30: 0.003269160915 | E30: 21 out of 27 | I30: -0.004320925586 | J30: -0.5692854206 | K30: Significantly below | L30: -0.0002312075445 | M30: -0.06605234481
A31: P81709 : ROMAN ROAD HEALTH CENTRE | B31: 4483 | C31: 14 | D31: 0.003122908766 | E31: 22 out of 27 | I31: -0.004467177735 | J31: -0.5885542588 | K31: Significantly below | L31: -0.0009402966512 | M31: -0.2314174536
A32: P81712 : DARWEN HEALTH CENTRE | B32: 3333 | C32: 15 | D32: 0.004500450045 | E32: 18 out of 27 | I32: -0.003089636456 | J32: -0.4070620876 | K32: Significantly below | L32: -0.0004213797176 | M32: -0.0856144438
A33: P81721 : DR P JAGADESHAM'S PRACTICE | B33: 1366 | C33: 3 | D33: 0.002196193265 | E33: 26 out of 27 | I33: -0.005393893236 | J33: -0.7106497713 | K33: Significantly below | L33: -0.0005491739279 | M33: -0.2000366032
A34: P81724 : PRINGLE STREET SURGERY | B34: 1844 | C34: 8 | D34: 0.004338394794 | E34: 19 out of 27 | I34: -0.003251691707 | J34: -0.4284129972 | L34: 0.000468853611 | M34: 0.1211651689
A35: P81734 : THE CORNERSTONE PRACTICE | B35: 17830 | C35: 81 | D35: 0.004542905216 | E35: 17 out of 27 | I35: -0.003047181285 | J35: -0.4014685847 | K35: Significantly below | L35: -0.000340683654 | M35: -0.06976092032
A36: P81771 : DR RC RAUTRAY'S PRACTICE | B36: 4838 | C36: 24 | D36: 0.004960727573 | E36: 16 out of 27 | I36: -0.002629358928 | J36: -0.3464201531 | K36: Significantly below | L36: -0.0006028413531 | M36: -0.1083551513
A37: Y02657 : BENTHAM ROAD HEALTH CENTRE | B37: 5394 | C37: 28 | D37: 0.005190952911 | E37: 15 out of 27 | I37: -0.002399133591 | J37: -0.3160877798 | K37: Significantly below | L37: -0.0001545232327 | M37: -0.02890729068
A38: Y03362 : THE WATERSIDE SURGERY | B38: 1870 | C38: 5 | D38: 0.002673796791 | E38: 23 out of 27 | I38: -0.00491628971 | J38: -0.6477251226 | K38: Significantly below | L38: 0.0005313222333 | M38: 0.2479946524
M39: G
M40: G
M41: G
M42: G
M43: G
M44: G
M45: G
M46: G
M47: G
M48: G
M49: G
M50: G
M51: G
M52: G
M53: G
M54: G
M55: G
M56: G
M57: G
M58: G
M59: G
M60: G
A61: NHS Blackpool CCG | B61: 172699 | C61: 1792 | D61: =C61/B61 -> 0.0103764353 | E61: 2/8 | F61: 0.02177313076 | G61: 2495.222558 | H61: =(C61-G61)/ABS(C61) -> -0.3924233025 | I61: =D61-$D$423 -> 0.002786348799 | J61: =(D61-$D$423)/ABS($D$423) -> 0.3671036949 | K61: Significantly above | L61: 0.0004130593369 | M61: 0.04145776877 | P61: G
A62: Practice | B62: Registered Population 2016/17 | C62: Dementia Register | D62: Prevalence | E62: Local rank | F62: 30+ Estimated Prevalence (2017) | G62: 30+ Estimated actuals (2017) | H62: Dementia Gap (%) | I62: % Point difference from national level | J62: % difference from national level | K62: Significance | L62: % Point Difference from 2015/16 prevalence level | M62: Percentage change from 2015/16 | P62: G
A63: P81004 : ELIZABETH STREET SURGERY | B63: 4678 | C63: 28 | D63: =C63/B63 -> 0.005985463873 | E63: =RANK(D63,$D$63:$D$83) & "/" & COUNTA($D$63:$D$83) -> 15/21 | I63: =D63-$D$423 -> -0.001604622628 | J63: =(D63-$D$423)/ABS($D$423) -> -0.2114103216 | L63: 0.0007586187971 | M63: 0.1451389483 | P63: G
A64: P81016 : WATERLOO MEDICAL CENTRE | B64: 11518 | C64: 116 | D64: 0.01007119292 | E64: 9/21 | I64: 0.002481106414 | J64: 0.3268877652 | K64: Significantly above | L64: 0.0008086350244 | M64: 0.08730148129 | P64: G
A65: P81042 : ADELAIDE STREET SURGERY | B65: 10862 | C65: 79 | D65: 0.007273062051 | E65: 11/21 | I65: -0.0003170244501 | J65: -0.04176822624 | L65: -0.0003371467655 | M65: -0.0443019073 | P65: G
A66: P81043 : SOUTH KING STREET MEDICAL CENTRE | B66: 5967 | C66: 36 | D66: 0.006033182504 | E66: 14/21 | I66: -0.001556903998 | J66: -0.2051233536 | L66: -0.002645383077 | M66: -0.3048180085 | P66: G
A67: P81054 : MARTON MEDICAL PRACTICE | B67: 8897 | C67: 58 | D67: 0.006519051366 | E67: 13/21 | I67: -0.001071035136 | J67: -0.1411097404 | L67: 0.0004722744118 | M67: 0.07810349471 | P67: G
A68: P81063 : ST PAULS MEDICAL CENTRE | B68: 11155 | C68: 128 | D68: 0.01147467503 | E68: 6/21 | I68: 0.003884588532 | J68: 0.5117976629 | K68: Significantly above | L68: -0.0002763116905 | M68: -0.02351391393 | P68: G
A69: P81066 : LAYTON MEDICAL CENTRE | B69: 6557 | C69: 37 | D69: 0.005642824462 | E69: 18/21 | I69: -0.001947262039 | J69: -0.2565533395 | L69: -0.0001420410786 | M69: -0.02455391185 | P69: G
A70: P81072 : GLENROYD MEDICAL CENTRE | B70: 15668 | C70: 210 | D70: 0.01340311463 | E70: 5/21 | I70: 0.005813028127 | J70: 0.7658711302 | K70: Significantly above | L70: 0.002236781446 | M70: 0.2003147684 | P70: G
A71: P81073 : CLEVELEYS GROUP PRACTICE | B71: 11258 | C71: 279 | D71: 0.02478237698 | E71: 1/21 | I71: 0.01719229048 | J71: 2.265098095 | K71: Significantly above | L71: 0.003331731639 | M71: 0.1553208114 | P71: G
A72: P81074 : HIGHFIELD SURGERY | B72: 13587 | C72: 137 | D72: 0.01008316773 | E72: 8/21 | I72: 0.002493081233 | J72: 0.3284654572 | K72: Significantly above | L72: 0.0002544476356 | M72: 0.02588817598 | P72: G
A73: P81081 : ARNOLD MEDICAL CENTRE | B73: 4540 | C73: 36 | D73: 0.007929515419 | E73: 10/21 | I73: 0.0003394289172 | J73: 0.04472003279 | L73: -0.0005754084848 | M73: -0.06765592395 | P73: G
A74: P81092 : THE CRESCENT SURGERY | B74: 8635 | C74: 117 | D74: 0.01354950782 | E74: 4/21 | I74: 0.005959421316 | J74: 0.7851585505 | K74: Significantly above | L74: -0.0004773770456 | M74: -0.03403300521 | P74: G
A75: P81115 : BLOOMFIELD MEDICAL CENTRE | B75: 12372 | C75: 70 | D75: 0.005657937278 | E75: 17/21 | I75: -0.001932149224 | J75: -0.2545622139 | K75: Significantly below | L75: -0.0007748112603 | M75: -0.1204479323 | P75: G
A76: P81159 : STONYHILL MEDICAL PRACTICE | B76: 8563 | C76: 122 | D76: 0.01424734322 | E76: 3/21 | I76: 0.00665725672 | J76: 0.8770989261 | K76: Significantly above | L76: 0.001773820039 | M76: 0.1422068178 | P76: G
A77: P81172 : NEWTON DRIVE HEALTH CENTRE | B77: 8871 | C77: 53 | D77: 0.005974523729 | E77: 16/21 | I77: -0.001615562772 | J77: -0.2128516944 | L77: -0.001352349351 | M77: -0.1845738743 | P77: G
A78: P81681 : NORTH SHORE SURGERY | B78: 12936 | C78: 196 | D78: 0.01515151515 | E78: 2/21 | I78: 0.00756142865 | J78: 0.9962243051 | K78: Significantly above | L78: 0.0008624174962 | M78: 0.06035493052 | P78: G
A79: P81684 : HARROWSIDE MEDICAL CENTRE | B79: 4539 | C79: 49 | D79: 0.01079532937 | E79: 7/21 | I79: 0.003205242866 | J79: 0.4222933251 | K79: Significantly above | L79: -0.0002960637113 | M79: -0.02669310421 | P79: G
A80: P81713 : THE SURGERY DINMORE | B80: 2160 | C80: 5 | D80: 0.002314814815 | E80: 20/21 | I80: -0.005275271687 | J80: -0.6950212867 | K80: Significantly below | L80: 0.0001862494679 | M80: 0.0875 | P80: G
A81: P81714 : ABBEY DALE MEDICAL CENTRE | B81: 3962 | C81: 27 | D81: 0.00681474003 | E81: 12/21 | I81: -0.000775346471 | J81: -0.102152521 | L81: 0.001629150511 | M81: 0.3141688143 | P81: G
A82: P81754 : VICARAGE LANE SURGERY | B82: 2016 | C82: 5 | D82: 0.00248015873 | E82: 19/21 | I82: -0.005109927771 | J82: -0.6732370929 | K82: Significantly below | L82: -0.001232712557 | M82: -0.332010582 | P82: G
A83: P81760 : GORTON MEDICAL CENTRE | B83: 3958 | C83: 4 | D83: 0.00101061142 | E83: 21/21 | I83: -0.006579475081 | J83: -0.8668511328 | K83: Significantly below | L83: -0.0005571962623 | M83: -0.3553983493 | P83: G
M84: G
M85: G
M86: G
M87: G
M88: G
M89: G
M90: G
M91: G
M92: G
M93: G
M94: G
M95: G
M96: G
M97: G
M98: G
M99: G
M100: G
M101: G
M102: G
M103: G
M104: G
M105: G
A106: NHS Chorley And South Ribble CCG | B106: 181931 | C106: 1452 | D106: =C106/B106 -> 0.00798104776 | E106: 5/8 | F106: 0.0192595008 | G106: 2320.731327 | H106: =(C106-G106)/ABS(C106) -> -0.598299812 | I106: =D106-$D$423 -> 0.0003909612585 | J106: =(D106-$D$423)/ABS($D$423) -> 0.0515094602 | K106: No significant difference | L106: 0.0001105357594 | M106: 0.01404429082 | P106: G
A107: Practice | B107: Registered Population 2016/17 | C107: Dementia Register | D107: Prevalence | E107: Local rank | F107: 30+ Estimated Prevalence (2017) | G107: 30+ Estimated actuals (2017) | H107: Dementia Gap (%) | I107: % Point difference from national level | J107: % difference from national level | K107: Significance | L107: % Point Difference from 2015/16 prevalence level | M107: Percentage change from 2015/16
A108: P81010 : WITHNELL HEALTH CENTRE | B108: 5272 | C108: 21 | D108: 0.004487658938 | E108: =RANK(D108,$D$108:$D$138) & "/" & COUNTA($D$108:$D$138) -> 30/31 | I108: =D108-$D$423 -> -0.003102427563 | J108: =(D108-$D$423)/ABS($D$423) -> -0.4087473262 | K108: Significantly below | L108: -0.00113905963 | M108: -0.2223697521
A109: P81033 : COPPULL MEDICAL PRACTICE | B109: 8005 | C109: 92 | D109: 0.01173768819 | E109: =RANK(D109,$D$108:$D$138) & "/" & COUNTA($D$108:$D$138) -> 4/31 | I109: 0.004147601684 | J109: 0.5464498572 | K109: Significantly above | L109: 0.001122259256 | M109: 0.1082159016
A110: P81038 : THE CHORLEY SURGERY | B110: 8680 | C110: 62 | D110: 0.007465472191 | E110: 19/31 | I110: -0.0001246143102 | J110: -0.01641803558 | L110: 4.653327129e-05 | M110: 0.006557377049
A111: P81044 : LIBRARY HOUSE SURGERY | B111: 16492 | C111: 178 | D111: 0.008845804302 | E111: 14/31 | I111: 0.0012557178 | J111: 0.16544183 | K111: Significantly above | L111: 0.0008225430089 | M111: 0.08249709973
A112: P81057 : WORDEN MEDICAL CENTRE | B112: 12514 | C112: 78 | D112: 0.005306695801 | E112: 26/31 | I112: -0.0022833907 | J112: -0.3008385609 | L112: 0.0007463777973 | M112: 0.1360354664
A113: P81062 : REGENT HOUSE SURGERY | B113: 8225 | C113: 78 | D113: 0.009427121102 | E113: 11/31 | I113: 0.001837034601 | J113: 0.2420307859 | K113: Significantly above | L113: -0.000731967234 | M113: -0.07165436387
A114: P81076 : SANDY LANE SURGERY | B114: 11577 | C114: 85 | D114: 0.008013096674 | E114: 18/31 | I114: 0.0004230101728 | J114: 0.05573193043 | L114: -0.0007511464952 | M114: -0.09281101479
A115: P81082 : THE RYAN MEDICAL CENTRE | B115: 10422 | C115: 77 | D115: 0.008233604596 | E115: 17/31 | I115: 0.0006435180942 | J115: 0.08478402638 | L115: 0.0002765161139 | M115: 0.03888185249
A116: P81083 : ROSLEA SURGERY | B116: 8490 | C116: 89 | D116: 0.009971014493 | E116: 9/31 | I116: 0.002380927991 | J116: 0.3136891775 | K116: Significantly above | L116: 0.001018092853 | M116: 0.1075659091
A117: P81117 : CENTRAL PARK SURGERY | B117: 4330 | C117: 24 | D117: 0.005617977528 | E117: 25/31 | I117: -0.001972108973 | J117: -0.2598269431 | L117: -0.0002671748965 | M117: -0.04598614319
A118: P81127 : THE SURGERY CHORLEY | B118: 3819 | C118: 26 | D118: 0.01069385725 | E118: 7/31 | I118: 0.003103770748 | J118: 0.4089242919 | L118: -0.001456397871 | M118: -0.1762241424
A119: P81143 : WHITTLE SURGERY | B119: 9511 | C119: 60 | D119: 0.006803479813 | E119: 20/31 | I119: -0.0007866066887 | J119: -0.1036360638 | L119: -0.0006687585399 | M119: -0.09584853166
A120: P81154 : GRANVILLE HOUSE MED CTRE | B120: 8302 | C120: 78 | D120: 0.00878565411 | E120: 15/31 | I120: 0.001195567609 | J120: 0.1575169938 | L120: 0.0002867522228 | M120: 0.03148157071
A121: P81171 : THE EUXTON MEDICAL CENTRE | B121: 4249 | C121: 15 | D121: 0.004712535344 | E121: 27/31 | I121: -0.002877551157 | J121: -0.3791196789 | K121: Significantly below | L121: -2.34178601e-05 | M121: -0.006589785832
A122: P81173 : CROSTON MEDICAL CENTRE | B122: 3942 | C122: 34 | D122: 0.008982035928 | E122: 12/31 | I122: 0.001391949427 | J122: 0.1833904563 | L122: 0.0001122942659 | M122: 0.01319127347
A123: P81180 : CLAYTON BROOK SURGERY | B123: 3393 | C123: 45 | D123: 0.01156240735 | E123: 5/31 | I123: 0.003972320851 | J123: 0.5233564664 | K123: Significantly above | L123: 0.001186016259 | M123: 0.09820793168
A124: P81181 : KINGSFOLD MEDICAL CENTRE | B124: 4164 | C124: 52 | D124: 0.01213346815 | E124: 3/31 | I124: 0.004543381648 | J124: 0.5985941857 | K124: Significantly above | L124: 0.002104803193 | M124: 0.2027125932
A125: P81186 : MOSS SIDE MEDICAL CENTRE | B125: 4420 | C125: 28 | D125: 0.005776340111 | E125: 23/31 | I125: -0.00181374639 | J125: -0.2389625454 | L125: 0.00197604374 | M125: 0.4533460348
A126: P81642 : MEDICARE UNIT SURGERY | B126: 2689 | C126: 12 | D126: 0.005702066999 | E126: 24/31 | I126: -0.001888019502 | J126: -0.2487480876 | L126: -0.001398180349 | M126: -0.2385645221
A127: P81655 : CROSTON VILLAGE SURGERY | B127: 3309 | C127: 21 | D127: 0.008557844691 | E127: 16/31 | I127: 0.0009677581896 | J127: 0.1275029197 | L127: -0.0001713626794 | M127: -0.0262919311
A128: P81687 : NEW LONGTON SURGERY | B128: 1681 | C128: 13 | D128: 0.01105651106 | E128: 6/31 | I128: 0.003466424555 | J128: 0.4567042226 | L128: -0.002626044899 | M128: -0.2534905693
A129: P81689 : EAVES LANE SURGERY | B129: 2062 | C129: 13 | D129: 0.008941877794 | E129: 13/31 | I129: 0.001351791293 | J129: 0.1780995899 | L129: 0.00141936083 | M129: 0.290543162
A130: P81692 : BEECHES MEDICAL CENTRE | B130: 1810 | C130: 18 | D130: 0.01237785016 | E130: 2/31 | I130: 0.004787763662 | J130: 0.6307917124 | L130: -0.001118555318 | M130: -0.1011049724
A131: P81701 : PRESTON ROAD SURGERY | B131: 3243 | C131: 48 | D131: 0.01280524122 | E131: 1/31 | I131: 0.005215154714 | J131: 0.6871008272 | K131: Significantly above | L131: 0.002534934064 | M131: 0.2066604995
A132: P81733 : ECCLESTON HEALTH CENTRE | B132: 4682 | C132: 23 | D132: 0.004659832246 | E132: 28/31 | I132: -0.002930254255 | J132: -0.3860633545 | K132: Significantly below | L132: 0.0005071442416 | M132: 0.1151217428
A133: P81740 : ADLINGTON MEDICAL CENTRE | B133: 1799 | C133: 7 | D133: 0.004608294931 | E133: 29/31 | I133: -0.00298179157 | J133: -0.3928534372 | L133: -0.001670684678 | M133: -0.3003891051
A134: P81741 : STATION SURGERY | B134: 2669 | C134: 13 | D134: 0.005797101449 | E134: 22/31 | I134: -0.001792985052 | J134: -0.2362272224 | L134: -0.000711695837 | M134: -0.1274884476
A135: P81769 : LOSTOCK HALL VILLAGE SURGERY | B135: 1435 | C135: 5 | D135: 0.01011904762 | E135: 8/31 | I135: 0.002528961118 | J135: 0.3331926609 | L135: -0.001628900772 | M135: -0.318566451
A136: Y00347 : DR R BAGHDJIAN SURGERY | B136: 5272 | C136: 35 | D136: 0.004376367615 | E136: 31/31 | I136: -0.003213718886 | J136: -0.4234100476 | L136: 0.001046868334 | M136: 0.1872089373
A137: Y02466 : BUCKSHAW VILLAGE HEALTH CENTRE | B137: 10049 | C137: 79 | D137: 0.006065349247 | E137: 21/31 | I137: -0.001524737255 | J137: -0.2008853594 | L137: -0.0008784261026 | M137: -0.1005075132
A138: Y03656 : LEYLAND SURGERY | B138: 5424 | C138: 43 | D138: 0.009784735812 | E138: 10/31 | I138: 0.002194649311 | J138: 0.2891468115 | L138: -0.001320598817 | M138: -0.1427932593
A153: NHS East Lancashire CCG | B153: 378849 | C153: 2981 | D153: =C153/B153 -> 0.007868570327 | E153: 6/8 | F153: 0.01918752344 | G153: 4593.032612 | H153: =(C153-G153)/ABS(C153) -> -0.5407690748 | I153: =D153-$D$423 -> 0.0002784838262 | J153: =(D153-$D$423)/ABS($D$423) -> 0.03669046804 | K153: No significant difference | L153: 1.489277982e-05 | M153: 0.001896281039 | P153: G
A154: Practice | B154: Registered Population 2016/17 | C154: Dementia Register | D154: Prevalence | E154: Local rank | F154: 30+ Estimated Prevalence (2017) | G154: 30+ Estimated actuals (2017) | H154: Dementia Gap (%) | I154: % Point difference from national level | J154: % difference from national level | K154: Significance | L154: % Point Difference from 2015/16 prevalence level | M154: Percentage change from 2015/16
A155: P81003 : ST JAMES' MEDICAL CENTRE | B155: 10654 | C155: 71 | D155: 0.007401239708 | E155: =RANK(D155,$D$155:$D$211) & "/" & COUNTA($D$155:$D$211) -> 26/57 | I155: =D155-$D$423 -> -0.0001888467937 | J155: =(D155-$D$423)/ABS($D$423) -> -0.02488071692 | L155: -0.0007370760133 | M155: -0.09958818284
A156: P81008 : YORKSHIRE STREET MEDICAL CENTRE | B156: 5895 | C156: 50 | D156: 0.008578637511 | E156: 18/57 | I156: 0.0009885510092 | J156: 0.1302423904 | L156: -9.687330356e-05 | M156: -0.01129238803
A157: P81017 : WHALLEY MEDICAL CENTRE | B157: 12603 | C157: 66 | D157: 0.004666505753 | E157: 49/57 | I157: -0.002923580749 | J157: -0.3851841146 | K157: Significantly below | L157: 0.0005703426168 | M157: 0.1222204894
A158: P81020 : ST. NICHOLAS GROUP PRACTICE | B158: 8989 | C158: 78 | D158: 0.008967120558 | E158: 16/57 | I158: 0.001377034057 | J158: 0.1814253443 | L158: -0.0002898483363 | M158: -0.03232345706
A159: P81025 : THE RICHMOND HILL PRACTICE | B159: 10466 | C159: 130 | D159: 0.01160115053 | E159: 5/57 | I159: 0.004011064026 | J159: 0.5284609109 | K159: Significantly above | L159: 0.0008200227958 | M159: 0.07068460959
A160: P81027 : IRWELL MEDICAL PRACTICE | B160: 14234 | C160: 93 | D160: 0.006927436848 | E160: 32/57 | I160: -0.000662649653 | J160: -0.08730462464 | L160: -0.0003937850288 | M160: -0.05684426107
A161: P81028 : MANCHESTER ROAD SURGERY | B161: 4720 | C161: 40 | D161: 0.006997455471 | E161: 30/57 | I161: -0.0005926310306 | J161: -0.07807961483 | L161: 0.0014771208 | M161: 0.2110939908
A162: P81032 : REEDYFORD HLTH CARE GROUP | B162: 11341 | C162: 107 | D162: 0.008446566287 | E162: 21/57 | I162: 0.0008564797859 | J162: 0.1128419005 | K162: Significantly above | L162: 0.0009882278227 | M162: 0.1169975809
A163: P81035 : COLNE ROAD SURGERY | B163: 4305 | C163: 26 | D163: 0.006558118498 | E163: 37/57 | I163: -0.001031968003 | J163: -0.1359626142 | L163: -0.0005186295321 | M163: -0.07908206176
A164: P81036 : PEEL HOUSE MEDICAL PRACTICE | B164: 14937 | C164: 169 | D164: 0.01151839556 | E164: 6/57 | I164: 0.003928309054 | J164: 0.5175578767 | K164: Significantly above | L164: -0.0002042093063 | M164: -0.01772897148
A165: P81047 : PARKSIDE SURGERY | B165: 10092 | C165: 104 | D165: 0.009135200974 | E165: 15/57 | I165: 0.001545114473 | J165: 0.2035700743 | K165: Significantly above | L165: 0.001169991257 | M165: 0.1280750429
A166: P81053 : BRIERCLIFFE SURGERY | B166: 7630 | C166: 54 | D166: 0.007817589577 | E166: 23/57 | I166: 0.0002275030752 | J166: 0.0299737131 | L166: -0.0007402632332 | M166: -0.09469200524
A167: P81065 : THE PENDLE MEDICAL PARTNERSHIP | B167: 11660 | C167: 99 | D167: 0.008644109657 | E167: 17/57 | I167: 0.001054023155 | J167: 0.1388683983 | L167: -0.000153543619 | M167: -0.01776280323
A168: P81069 : PENDLESIDE MEDICAL PRACT | B168: 10190 | C168: 115 | D168: 0.01214329083 | E168: 3/57 | I168: 0.00455320433 | J168: 0.5998883319 | K168: Significantly above | L168: -0.0008577167396 | M168: -0.0706329735
A169: P81070 : PENDLE VIEW MEDICAL CTRE | B169: 7249 | C169: 77 | D169: 0.01005768377 | E169: 9/57 | I169: 0.002467597273 | J169: 0.325107925 | K169: Significantly above | L169: 0.0005644710054 | M169: 0.05612335981
A170: P81078 : BARNOLDSWICK MED CTR | B170: 11608 | C170: 83 | D170: 0.007168149236 | E170: 27/57 | I170: -0.0004219372656 | J170: -0.05559057404 | L170: -1.790802273e-05 | M170: -0.00249827705
A171: P81088 : WHITWORTH MEDICAL CENTRE | B171: 7201 | C171: 34 | D171: 0.005073995772 | E171: 47/57 | I171: -0.00251609073 | J171: -0.3314969769 | K171: Significantly below | L171: -0.0003524293226 | M171: -0.06945794566
A172: P81095 : THURSBY SURGERY | B172: 7700 | C172: 103 | D172: 0.01050696086 | E172: 8/57 | I172: 0.00291687436 | J172: 0.3843005425 | K172: Significantly above | L172: 0.002869662515 | M172: 0.2731201299
A173: P81099 : DR THM MACKENZIE & PARTNERS | B173: 10214 | C173: 95 | D173: 0.01003078757 | E173: 10/57 | I173: 0.002440701064 | J173: 0.3215643279 | K173: Significantly above | L173: -0.0007298280984 | M173: -0.0727588032
A174: P81100 : THE CASTLE MEDICAL GROUP | B174: 14524 | C174: 106 | D174: 0.008461058326 | E174: 20/57 | I174: 0.0008709718245 | J174: 0.1147512383 | L174: -0.001162793385 | M174: -0.1374288346
A175: P81104 : OXFORD ROAD MEDICAL CTRE | B175: 4515 | C175: 48 | D175: 0.009280217293 | E175: 13/57 | I175: 0.001690130792 | J175: 0.2226760909 | K175: Significantly above | L175: 0.001351011943 | M175: 0.1455797747
A176: P81118 : ILEX VIEW MEDICAL PRACTICE | B176: 7562 | C176: 100 | D176: 0.01409214092 | E176: 1/57 | I176: 0.00650205442 | J176: 0.8566508984 | K176: Significantly above | L176: -0.0008681261105 | M176: -0.06160356438
A177: P81123 : ELMS FEDERATED PRACTICE | B177: 19623 | C177: 125 | D177: 0.006756085445 | E177: 35/57 | I177: -0.0008340010567 | J177: -0.1098803099 | K177: Significantly below | L177: -0.0003860095133 | M177: -0.05713508458
A178: P81130 : PADIHAM GROUP PRACTICE | B178: 12843 | C178: 108 | D178: 0.007732562681 | E178: 25/57 | I178: 0.0001424761793 | J178: 0.01877135119 | L178: 0.0006766874946 | M178: 0.08751141407
A179: P81132 : DR DM DOHERTY & PARTNERS | B179: 9014 | C179: 60 | D179: 0.005921052632 | E179: 40/57 | I179: -0.00166903387 | J179: -0.2198965545 | L179: 0.0007352597713 | M179: 0.1241772058
A180: P81134 : KIDDROW MEDICAL PRACTICE | B180: 4080 | C180: 33 | D180: 0.006908462867 | E180: 33/57 | I180: -0.0006816236343 | J180: -0.08980446194 | L180: 0.001179772427 | M180: 0.1707720588
A181: P81137 : BURNLEY WOOD MEDICAL CENTRE | B181: 5878 | C181: 64 | D181: 0.0109739369 | E181: 7/57 | I181: 0.003383850399 | J181: 0.4458250111 | K181: Significantly above | L181: -8.587973756e-05 | M181: -0.007825791085
A182: P81146 : MYRTLE HOUSE | B182: 4925 | C182: 58 | D182: 0.01300236407 | E182: 2/57 | I182: 0.005412277565 | J182: 0.7130719214 | K182: Significantly above | L182: -0.00122571432 | M182: -0.09426857407
A183: P81147 : BLACKBURN RD MEDICAL CENTRE | B183: 3741 | C183: 19 | D183: 0.005100671141 | E183: 46/57 | I183: -0.00248941536 | J183: -0.3279824756 | L183: -2.181522006e-05 | M183: -0.004276931302
A184: P81160 : OSWALD MEDICAL CENTRE | B184: 8976 | C184: 66 | D184: 0.008574368355 | E184: 19/57 | I184: 0.0009842818535 | J184: 0.1296799257 | L184: -0.001221427178 | M184: -0.1424509804
A185: P81165 : IGHTENHILL MEDICAL CENTRE | B185: 2239 | C185: 17 | D185: 0.006750675068 | E185: 36/57 | I185: -0.0008394114338 | J185: -0.1105931314 | L185: 0.000842000234 | M185: 0.1247283013
A186: P81166 : DR BELLO'S SURGERY | B186: 2475 | C186: 17 | D186: 0.008113590264 | E186: 22/57 | I186: 0.0005235037624 | J186: 0.06897204166 | L186: -0.001244903395 | M186: -0.1534343434
A187: P81170 : DR MALIK & PARTNER | B187: 5742 | C187: 15 | D187: 0.003104987386 | E187: =RANK(D187,$D$155:$D$211) & "/" & COUNTA($D$155:$D$211) -> 54/57 | I187: =D187-$D$423 -> -0.004485099115 | J187: =(D187-$D$423)/ABS($D$423) -> -0.5909154151 | K187: Significantly below | L187: -0.0004926571875 | M187: -0.1586664054
A188: P81182 : RICHMOND MEDICAL CENTRE | B188: 6039 | C188: 26 | D188: 0.004887585533 | E188: 48/57 | I188: -0.002702500969 | J188: -0.3560566758 | K188: Significantly below | L188: -0.0005822369651 | M188: -0.1191256831
A189: P81197 : ROSEGROVE SURGERY | B189: 4470 | C189: 30 | D189: 0.007814244251 | E189: 24/57 | I189: 0.0002241577496 | J189: 0.02953296377 | L189: -0.001102834855 | M189: -0.1411313519
A190: P81212 : DR MOUJAES | B190: 4994 | C190: 40 | D190: 0.009240658899 | E190: 14/57 | I190: 0.001650572398 | J190: 0.2174642407 | L190: -0.001231047365 | M190: -0.1332207344
A191: P81215 : ROSEHILL SURGERY | B191: 6302 | C191: 37 | D191: 0.006235641615 | E191: 38/57 | I191: -0.001354444887 | J191: -0.178449203 | L191: -0.0003644895995 | M191: -0.05845262156
A192: P81218 : THE CLAYTON MEDICAL CTR. | B192: 6600 | C192: 79 | D192: 0.01162439614 | E192: 4/57 | I192: 0.004034309634 | J192: 0.5315235384 | K192: Significantly above | L192: 0.0003453008344 | M192: 0.02970484061
A193: P81620 : SLAIDBURN HEALTH CENTRE | B193: 1053 | C193: 8 | D193: 0.005698005698 | E193: 41/57 | I193: -0.001892080803 | J193: -0.2492831673 | L193: 0.001899335233 | M193: 0.3333333333
A194: P81659 : THE ROYLE | B194: 3918 | C194: 23 | D194: 0.009903874163 | E194: 11/57 | I194: 0.002313787661 | J194: 0.304843385 | L194: 0.0004467882922 | M194: 0.08237925083
A195: P81686 : ROSSENDALE VALLEY MEDICAL PRACTICE | B195: 2589 | C195: 9 | D195: 0.005423553719 | E195: 43/57 | I195: -0.002166532782 | J195: -0.2854424363 | K195: Significantly below | L195: -0.0008612937775 | M195: -0.1985673654
A196: P81699 : HIGHER HEYS SURGERY | B196: 2292 | C196: 18 | D196: 0.004337539432 | E196: 51/57 | I196: -0.003252547069 | J196: -0.4285256918 | L196: 0.002529534463 | M196: 0.4751308901
A197: P81711 : DILL HALL SURGERY | B197: 2578 | C197: 20 | D197: 0.005323868678 | E197: 44/57 | I197: -0.002266217823 | J197: -0.2985760206 | L197: 0.0007973950562 | M197: 0.1145590897
A198: P81726 : KING STREET MEDICAL CTR | B198: 2081 | C198: 14 | D198: 0.006960556845 | E198: 31/57 | I198: -0.0006295296568 | J198: -0.08294103851 | L198: -0.0001453173947 | M198: -0.02114368092
A199: P81730 : GREAT HARWOOD MEDICAL GROUP | B199: 8354 | C199: 49 | D199: 0.006872852234 | E199: 34/57 | I199: -0.0007172342676 | J199: -0.09449619151 | L199: 0.000397075168 | M199: 0.07261296333
A200: P81731 : DR JEHANGIR (SH) | B200: 2742 | C200: 10 | D200: 0.005468378507 | E200: 42/57 | I200: -0.002121707994 | J200: -0.2795367344 | K200: Significantly below | L200: 0.001079108009 | M200: 0.4202354903
A201: P81732 : HARAMBEE SURGERY | B201: 4125 | C201: 25 | D201: 0.002567865004 | E201: 56/57 | I201: -0.005022221498 | J201: -0.6616817209 | L201: -0.001022930823 | M201: -0.1444096134
A202: P81736 : WHITEFIELD HEALTHCARE | B202: 3700 | C202: 19 | D202: 0.007083536883 | E202: 28/57 | I202: -0.0005065496181 | J202: -0.06673831952 | L202: 0.0005255906666 | M202: 0.1140222576
A203: P81738 : RISHTON & GREAT HARWOOD SURGERY | B203: 1080 | C203: 6 | D203: 0.004609544469 | E203: 50/57 | I203: -0.002980542033 | J203: -0.3926888096 | L203: 0.0003875968992 | M203: 0.075
A204: P81749 : ABBEY SURGERY | B204: 1494 | C204: 5 | D204: 0.005167958656 | E204: 45/57 | I204: -0.002422127845 | J204: -0.3191172913 | L204: -0.0007349124389 | M204: -0.1800535475
A205: P81755 : CABIN SURGERY | B205: 4489 | C205: 31 | D205: 0.004081632653 | E205: 52/57 | I205: -0.003508453848 | J205: -0.4622416158 | L205: -0.0001691805951 | M205: -0.02391261974
A206: P81756 : DANESHOUSE MEDICAL CENTRE | B206: 3293 | C206: 6 | D206: 0.007074950254 | E206: 29/57 | I206: -0.0005151362471 | J206: -0.06786961479 | K206: Significantly below | L206: -0.0002495720563 | M206: -0.1204719969
A207: P81757 : BARROWFORD SURGERY | B207: 3260 | C207: 29 | D207: 0.002071618822 | E207: 57/57 | I207: -0.005518467679 | J207: -0.7270625543 | L207: 0.002938005194 | M207: 0.4931441718
A208: P81778 : DR A K JHA (SH) | B208: 2832 | C208: 28 | D208: 0.005957700328 | E208: 39/57 | I208: -0.001632386174 | J208: -0.215068191 | L208: 0.000416644373 | M208: 0.04399455953
A209: P81780 : RIVERSIDE FAMILY PRACTICE | B209: 4463 | C209: 14 | D209: 0.009470361277 | E209: 12/57 | I209: 0.001880274775 | J209: 0.2477277137 | K209: Significantly below | L209: 0.0001094232233 | M209: 0.03614333236
A210: Y02605 : AVHAC REGISTERED PATIENTS | B210: 2564 | C210: 12 | D210: 0.003027480205 | E210: 55/57 | I210: -0.004562606296 | J210: -0.6011270485 | L210: 0.001238504607 | M210: 0.3598543942
A211: Y02606 : FAIRMORE MEDICAL PRACTICE | B211: 5712 | C211: 13 | D211: 0.0034416826 | E211: 53/57 | I211: -0.004148403901 | J211: -0.5465555498 | K211: Significantly below | L211: -0.000558097733 | M211: -0.1969287715
A228: NHS Fylde & Wyre CCG | B228: 151112 | C228: 1982 | D228: =C228/B228 -> 0.01311609932 | E228: 1/8 | F228: 0.02715917427 | G228: 2892.968084 | H228: =(C228-G228)/ABS(C228) -> -0.4596206276 | I228: =D228-$D$423 -> 0.005526012816 | J228: =(D228-$D$423)/ABS($D$423) -> 0.7280566321 | K228: Significantly above | L228: 0.0009292432277 | M228: 0.07624962672 | P228: G
A229: Practice | B229: Registered Population 2016/17 | C229: Dementia Register | D229: Prevalence | E229: Local rank | F229: 30+ Estimated Prevalence (2017) | G229: 30+ Estimated actuals (2017) | H229: Dementia Gap (%) | I229: % Point difference from national level | J229: % difference from national level | K229: Significance | L229: % Point Difference from 2015/16 prevalence level | M229: Percentage change from 2015/16
A230: P81031 : POPLAR HOUSE SURGERY | B230: 7426 | C230: 101 | D230: =C230/B230 -> 0.01360086184 | E230: =RANK(D230,$D$230:$D$248) & "/" & COUNTA($D$230:$D$248) -> 8/19 | I230: =D230-$D$423 -> 0.006010775335 | J230: =(D230-$D$423)/ABS($D$423) -> 0.7919244839 | K230: Significantly above | L230: -8.715469214e-05 | M230: -0.00636722581
A231: P81037 : ANSDELL MEDICAL CENTRE | B231: 9145 | C231: 148 | D231: =C231/B231 -> 0.01618370694 | E231: 6/19 | I231: 0.008593620442 | J231: 1.132216404 | K231: Significantly above | L231: 0.0006140730985 | M231: 0.03944043287
A232: P81077 : HOLLAND HOUSE SURGERY | B232: 10859 | C232: 195 | D232: 0.01795745465 | E232: 5/19 | I232: 0.01036736814 | J232: 1.36590909 | K232: Significantly above | L232: 0.00356027835 | M232: 0.2472900433
A233: P81079 : THE THORNTON PRACTICE | B233: 12766 | C233: 133 | D233: 0.01041829861 | E233: 13/19 | I233: 0.002828212104 | J233: 0.372619219 | K233: Significantly above | L233: 0.0002906480096 | M233: 0.02869846337
A234: P81086 : BROADWAY MEDICAL CENTRE | B234: 10261 | C234: 107 | D234: 0.01042783354 | E234: 12/19 | I234: 0.002837747043 | J234: 0.3738754549 | K234: Significantly above | L234: 0.0006022871238 | M234: 0.06129807931
... 135 more rows

Sheet QoF Monthly Extracts
A1: Monthly dementia prevalence by Clinical Commissioning Group (CCG)
A5: Source : HSCIC QoF Dementia registers
A7: In 2015 the Office for National Statistics (ONS) began publishing monthly extracts of the GP dementia registers. Which are used to calculate dementia diagnosis rates in conjunction with the latest dementia prevalence estimates. In order to support the 2009 national dementia strategy which called for two-thirds (67.70%) of the estimated number of people with dementia to receive a diagnosis and appropriate post-diagnosis support by March 2015, so that they can access the right care at the right time. One key difference between this extract and the full year Quality and Outcomes Framework(QoF) figures, is that due to a number of reasons not all practices are included in each monthly extract. In such cases we have used the latest available figures to produce a more complete picture.
A12: Click here for further details
B14: QoF all age dementia prevalence October 2017
B16: =B14 -> QoF all age dementia prevalence October 2017
B17: CCG | C17: Registered Population | D17: Extract practice count | E17: Dementia Register | F17: Recorded Prevalence | G17: % Point difference from England | H17: % difference from England | I17: Significance of difference | L17: =B26 -> England | M17: L1 | N17: U1 | O17: L2 | P17: U2
B18: NHS Blackburn with Darwen CCG | C18: 168352 | D18: 25 / 25 | E18: 1183 | F18: =E18/C18 -> 0.007026943547 | G18: =F18-$F$26 -> -0.0007810394523 | H18: =(F18-$F$26)/ABS($F$26) -> -0.1000308854 | I18: Low | L18: =$F$26 -> 0.007807982999 | M18: 0.006639021436 | N18: 0.00743736248 | O18: =F18-M18 -> 0.0003879221109 | P18: =N18-F18 -> 0.0004104189329
B19: NHS Blackpool CCG | C19: 173245 | D19: 20 / 20 | E19: 1857 | F19: 0.01071892407 | G19: =F19-$F$26 -> 0.002910941068 | H19: 0.37281601 | I19: High | L19: =$F$26 -> 0.007807982999 | M19: 0.01024475584 | N19: 0.01121479002 | O19: 0.0004741682258 | P19: 0.0004958659536
B20: NHS Chorley and South Ribble CCG | C20: 182893 | D20: 30 / 30 | E20: 1512 | F20: 0.008267128868 | G20: 0.0004591458686 | H20: 0.05880467063 | I20: High | L20: =$F$26 -> 0.007807982999 | M20: 0.007862355571 | N20: 0.008692558306 | O20: 0.0004047732964 | P20: 0.0004254294385
B21: NHS East Lancashire CCG | C21: 370168 | D21: 56 / 57 | E21: 3040 | F21: 0.008212487303 | G21: 0.0004045043039 | H21: 0.05180650419 | I21: High | L21: 0.007807982999 | M21: 0.007926813878 | N21: 0.008508367779 | O21: 0.0002856734246 | P21: 0.0002958804759
B22: NHS Fylde & Wyre CCG | C22: 151735 | D22: 19 / 19 | E22: 2092 | F22: 0.01378719478 | G22: 0.005979211781 | H22: 0.7657818648 | I22: High | L22: 0.007807982999 | M22: 0.01321266544 | N22: 0.01438634229 | O22: 0.000574529336 | P22: 0.0005991475083
B23: NHS Greater Preston CCG | C23: 215288 | D23: 30 / 30 | E23: 1539 | F23: 0.007148563784 | G23: -0.0006594192148 | H23: -0.08445448906 | I23: Low | L23: 0.007807982999 | M23: 0.006801383648 | N23: 0.007513331846 | O23: 0.0003471801359 | P23: 0.000364768062
B24: NHS Morecambe Bay | C24: 353245 | D24: 36 / 42 | E24: 3817 | F24: 0.01080553157 | G24: 0.002997548572 | H24: 0.3839081838 | I24: High | L24: 0.007807982999 | M24: 0.01046987486 | N24: 0.01115182792 | O24: 0.0003356567112 | P24: 0.000346296352
B25: NHS West Lancashire CCG | C25: 111104 | D25: 17 / 18 | E25: 1100 | F25: 0.009900633641 | G25: 0.002092650641 | H25: 0.2680142415 | I25: High | L25: 0.007807982999 | M25: 0.009335166148 | N25: 0.01049999067 | O25: 0.0005654674921 | P25: 0.000599357027
B26: England | C26: 58146643 | D26: 7216 | E26: 454008 | F26: 0.007807982999 | M26: 0.007785392344 | N26: 0.007830638688 | O26: 2.259065524e-05 | P26: 2.265568859e-05
B27: Extract practice count, refers to the number of practices for whom NHS digital was able to extract recorded dementia prevalence data for. 99.1% of pratices from England wehere included in the October 2017 extract.
B46: QoF Dementia prevalence October 2017 - age split
B48: =B46 -> QoF Dementia prevalence October 2017 - age split
B49: CCG | C49: Registered 65 + Population | D49: Registered 0-64 Population | E49: Recorded 65+ Prevalence | G49: Significance from England | H49: Recorded 0-64 Prevalence | J49: Significance from England
B50: NHS Blackburn with Darwen CCG | C50: 24188 | D50: 144164 | E50: 1127 | F50: =E50/C50 -> 0.04659335208 | G50: High | H50: 56 | I50: =H50/D50 -> 0.0003884464915 | J50: -
B51: NHS Blackpool CCG | C51: 35028 | D51: 138217 | E51: 1790 | F51: =E51/C51 -> 0.05110197556 | G51: High | H51: 67 | I51: =H51/D51 -> 0.0004847450024 | J51: High
B52: NHS Chorley and South Ribble CCG | C52: 35943 | D52: 146950 | E52: 1468 | F52: 0.04084244498 | G52: Low | H52: 44 | I52: 0.000299421572 | J52: -
B53: NHS East Lancashire CCG | C53: 66127 | D53: 304041 | E53: 2908 | F53: 0.0439759856 | G53: - | H53: 132 | I53: 0.0004341519729 | J53: High
B54: NHS Fylde & Wyre CCG | C54: 39859 | D54: 111876 | E54: 2037 | F54: =E54/C54 -> 0.05110514564 | G54: High | H54: 55 | I54: =H54/D54 -> 0.0004916157174 | J54: High
B55: NHS Greater Preston CCG | C55: 35286 | D55: 180002 | E55: 1474 | F55: 0.04177294111 | G55: - | H55: 65 | I55: 0.0003611070988 | J55: -
B56: NHS Morecambe Bay | C56: 78492 | D56: 274753 | E56: 3692 | F56: 0.04703664068 | G56: High | H56: 125 | I56: 0.000454954086 | J56: High
B57: NHS West Lancashire CCG | C57: 23304 | D57: 87800 | E57: 1060 | F57: 0.04548575352 | G57: - | H57: 40 | I57: 0.0004555808656 | J57: High
B58: England | C58: 10096396 | D58: 48050247 | E58: 439509 | F58: =E58/C58 -> 0.04353127591 | G58: - | H58: 14499 | I58: 0.0003017466279 | J58: -
C62: Proportion of dementia patients aged 65+ | D62: Proportion of dementia patients aged 0-64
B63: =B58 -> England | C63: =E58/(E58+H58) -> 0.9680644394 | D63: =H58/(H58+E58) -> 0.03193556061
B64: NHS Chorley and South Ribble CCG | C64: =E52/(E52+H52) -> 0.9708994709 | D64: =H52/(H52+E52) -> 0.0291005291
B65: NHS East Lancashire CCG | C65: =E53/(E53+H53) -> 0.9565789474 | D65: =H53/(H53+E53) -> 0.04342105263
B66: NHS Fylde & Wyre CCG | C66: =E55/(E55+H55) -> 0.9577647823 | D66: =H55/(H55+E55) -> 0.04223521767
B67: NHS Greater Preston CCG | C67: =E56/(E56+H56) -> 0.9672517684 | D67: =H56/(H56+E56) -> 0.0327482316
B68: NHS Lancashire North CCG | C68: =E57/(E57+H57) -> 0.9636363636 | D68: =H57/(H57+E57) -> 0.03636363636
B69: NHS West Lancashire CCG | C69: =E54/(E54+H54) -> 0.973709369 | D69: =H54/(H54+E54) -> 0.02629063098

Sheet Estimated prevalence
A1: Dementia in Lancashire
A3: Estimated prevalence 2017
A5: These estimates have been calculated using the latest NHS England methodology that combines the Alzheimer's Society 2014 (Delphi) aged 30-64 estimates with the CFAS II 65+ estimates, and applying them to the April 2017 registered population figures.
A8: Clinical Commissioning Group estimates (CCGs)
A9: Geography | B9: ONS Code | C9: NHS Code | D9: Area | E9: Estimated prevalence
E10: 30 - 64 (AS-2014) | F10: Population | G10: % | H10: 65+ Only (CFAS II) | I10: Population | J10: % | K10: Estimated cases Age 30+ | L10: Population | M10: % | Q10: L C.I | R10: U C.I | S10: L2 | T10: U2
F11: 30-64 | I11: 65+ | L11: 30+
A12: National | B12: E92000001 | C12: ENG | D12: ENGLAND | E12: 37390.43235 | F12: 26960430 | G12: =E12/F12 -> 0.001386863353 | H12: 636420.748 | I12: 10080273 | J12: =H12/I12 -> 0.06313526905 | K12: =H12+E12 -> 673811.1804 | L12: =I12+F12 -> 37040703 | M12: =K12/L12 -> 0.0181911013 | P12: =$M$12 -> 0.0181911013 | Q12: 0.0181481133 | R12: 0.01823418923 | S12: =M12-Q12 -> 4.298799713e-05 | T12: =R12-M12 -> 4.308793307e-05
A13: CCG | B13: E38000014 | C13: 00Q | D13: NHS Blackburn with Darwen CCG | E13: 104.939586 | F13: 78344 | G13: =E13/F13 -> 0.001339471893 | H13: 1491.193 | I13: 24743 | J13: =H13/I13 -> 0.06026726751 | K13: =H13+E13 -> 1596.132586 | L13: =I13+F13 -> 103087 | M13: =K13/L13 -> 0.0154833547 | P13: =$M$12 -> 0.0181911013 | Q13: 0.01474752142 | R13: 0.01625529693 | S13: =M13-Q13 -> 0.0007358332804 | T13: =R13-M13 -> 0.000771942225 | U13: =IF(Q13>$R$12,"High",IF(R13<$Q$12,"Low","No diff")) -> Low
A14: CCG | B14: E38000015 | C14: 00R | D14: NHS Blackpool CCG | E14: 122.960369 | F14: 79877 | G14: =E14/F14 -> 0.001539371396 | H14: 2193.053 | I14: 34819 | J14: =H14/I14 -> 0.06298437635 | K14: =H14+E14 -> 2316.013369 | L14: =I14+F14 -> 114696 | M14: =K14/L14 -> 0.02019262545 | P14: 0.0181911013 | Q14: 0.01939451937 | R14: 0.02102287039 | S14: 0.0007981060881 | T14: 0.0008302449341 | U14: =IF(Q14>$R$12,"High",IF(R14<$Q$12,"Low","No diff")) -> High
A15: CCG | B15: E38000034 | C15: 00X | D15: NHS Chorley and South Ribble CCG | E15: 128.916285 | F15: 85544 | G15: 0.001507017266 | H15: 2063.759 | I15: 35474 | J15: 0.0581766646 | K15: 2192.675285 | L15: 121018 | M15: 0.01811858802 | P15: 0.0181911013 | Q15: 0.01738226465 | R15: 0.01888550302 | S15: 0.0007363233682 | T15: 0.0007669149965 | U15: No diff
A16: CCG | B16: E38000050 | C16: 01A | D16: NHS East Lancashire CCG | E16: 258.205775 | F16: 172256 | G16: 0.001498965348 | H16: 4048.813 | I16: 67822 | J16: 0.05969763499 | K16: 4307.018775 | L16: 240078 | M16: 0.01794008104 | P16: 0.0181911013 | Q16: 0.01741679316 | R16: 0.01847879543 | S16: 0.0005232878782 | T16: 0.0005387143954 | U16: No diff
A17: CCG | B17: E38000060 | C17: 02M | D17: NHS Fylde & Wyre CCG | E17: 118.257536 | F17: 67132 | G17: 0.0017615673 | H17: 2576.3 | I17: 39413 | J17: 0.06536675716 | K17: 2694.557536 | L17: 106545 | M17: 0.02529032368 | P17: 0.0181911013 | Q17: 0.02436455061 | R17: 0.02625032664 | S17: 0.0009257730688 | T17: 0.0009600029609 | U17: High
A18: CCG | B18: E38000065 | C18: 01E | D18: NHS Greater Preston CCG | E18: 136.347896 | F18: 96312 | G18: 0.001415689592 | H18: 2185.294 | I18: 34963 | J18: 0.06250304608 | K18: 2321.641896 | L18: 131275 | M18: 0.01768533153 | P18: 0.0181911013 | Q18: 0.01698631657 | R18: 0.0184125733 | S18: 0.0006990149529 | T18: 0.0007272417702 | U18: No diff
A19: CCG | B19: E38000093 | C19: 01K | D19: NHS Morecambe Bay CCG | E19: 263.528785 | F19: 159417 | G19: 0.00165307831 | H19: 4991.364 | I19: 79896 | J19: 0.06247326524 | K19: 5254.892785 | L19: 239313 | M19: 0.02195824207 | P19: 0.0181911013 | Q19: 0.02137872903 | R19: 0.02255310194 | S19: 0.0005795130396 | T19: 0.000594859872 | U19: High
A20: CCG | B20: E38000200 | C20: 02G | D20: NHS West Lancashire CCG | E20: 81.417361 | F20: 50627 | G20: 0.001608180635 | H20: 1421.831 | I20: 23682 | J20: 0.06003846803 | K20: 1503.248361 | L20: 74309 | M20: 0.0202296944 | P20: 0.0181911013 | Q20: 0.01924197598 | R20: 0.02126701441 | S20: 0.0009877184169 | T20: 0.001037320016 | U20: High
B24: Significantly below England prevalence
B25: Significantly above England prevalence
A27: Cognitive Function & Ageing Study (CFAS II)
A28: Alzheimer's Society; Dementia UK: Update 2014
E31: 30-64 | F31: 65+
C32: ENG | D32: ENGLAND | E32: =E12/K12 -> 0.05549096459 | F32: =H12/K12 -> 0.9445090354
C33: 00Q | D33: NHS Blackburn with Darwen CCG | E33: =E13/K13 -> 0.06574615851 | F33: =H13/K13 -> 0.9342538415
C34: 00R | D34: NHS Blackpool CCG | E34: =E14/K14 -> 0.05309138999 | F34: =H14/K14 -> 0.94690861
C35: 00X | D35: NHS Chorley and South Ribble CCG | E35: 0.05879406125 | F35: 0.9412059388
C36: 01A | D36: NHS East Lancashire CCG | E36: 0.05994999987 | F36: 0.9400500001
C37: 02M | D37: NHS Fylde & Wyre CCG | E37: 0.04388755275 | F37: 0.9561124472
C38: 01E | D38: NHS Greater Preston CCG | E38: 0.05872908145 | F38: 0.9412709186
C39: 01K | D39: NHS Morecambe Bay CCG | E39: 0.05014922203 | F39: 0.949850778
C40: 02G | D40: NHS West Lancashire CCG | E40: 0.05416095112 | F40: 0.9458390489
A76: These estimates have been calculated using the latest NHS England methodology that combines the Alzheimer's Society 2014 (Delphi) aged 30-64 estimates with the CFAS II 65+ estimates, and applying them to the April 2017 projected estimated resident population figures.
A79: District estimates
A80: Estimated dementia prevalence using the 2014-based ONS Population projection for 2017 | E80: Estimated prevalence
E81: 30 - 64 (AS-2014) | F81: Population | G81: % | H81: 65+ Only (CFAS II) | I81: Population | J81: % | K81: Estimated cases Age 30+ | L81: Population | M81: %
A82: Geography | B82: ONS Code | D82: Area | F82: 30-64 | I82: 65+ | L82: 30+ | Q82: L C.I | R82: U C.I | S82: L2 | T82: U2
A83: National | B83: E92000001 | D83: ENGLAND | E83: 36094 | F83: 25011610 | G83: 0.001423572523 | H83: 644001 | I83: 10063227 | J83: 0.06410972054 | K83: =H83+E83 -> 680095 | L83: =I83+F83 -> 35074837 | M83: =K83/L83 -> 0.01938982639 | O83: =$M$83 -> 0.01938982639 | P83: =M83 -> 0.01938982639 | Q83: 0.01934424532 | R83: 0.01943551272 | S83: =P83-Q83 -> 4.558106272e-05 | T83: =R83-P83 -> 4.568633728e-05
A84: Area Team | B84: E39000004 | D84: Lancashire (Area team) | E84: =SUM(E85:E98) -> 1029 | F84: =SUM(F85:F98) -> 661753 | G84: 0.001540840516 | H84: =SUM(H85:H98) -> 18315 | I84: =SUM(I85:I98) -> 294477 | J84: 0.06235783147 | K84: =H84+E84 -> 19344 | L84: =I84+F84 -> 956230 | M84: =K84/L84 -> 0.02022944271 | O84: =$M$83 -> 0.01938982639 | P84: =M84 -> 0.02022944271 | Q84: 0.01994918742 | R84: 0.02051355274 | S84: =P84-Q84 -> 0.0002802552845 | T84: =R84-P84 -> 0.0002841100296 | U84: =IF($Q$83>R84,"Low",IF($R$83<Q84,"High","No diff")) -> High
A85: District | B85: E06000008 | D85: Blackburn with Darwen | E85: 91 | F85: 65792 | G85: 0.001367992681 | H85: 1251 | I85: 21416 | J85: 0.05972441173 | K85: 1342 | L85: 87208 | M85: =K85/L85 -> 0.01538849647 | O85: 0.01938982639 | P85: =M85 -> 0.01538849647 | Q85: 0.01459262213 | R85: 0.0162270626 | S85: 0.0007958743366 | T85: 0.0008385661341 | U85: =IF($Q$83>R85,"Low",IF($R$83<Q85,"High","No diff")) -> Low
A86: District | B86: E06000009 | D86: Blackpool | E86: 98 | F86: 62985 | G86: 0.001523803084 | H86: 1835 | I86: 28652 | J86: 0.06426308624 | K86: 1933 | L86: 91637 | M86: 0.02109409954 | O86: 0.01938982639 | P86: =M86 -> 0.02109409954 | Q86: 0.02018359058 | R86: 0.02204475867 | S86: 0.0009105089682 | T86: 0.0009506591298 | U86: High
A87: District | B87: E07000117 | D87: Burnley | E87: 59 | F87: 39179 | G87: =E87/F87 -> 0.001505908778 | H87: 984 | I87: 16108 | J87: =H87/I87 -> 0.06108765831 | K87: 1043 | L87: 55287 | M87: 0.01886519435 | O87: 0.01938982639 | P87: 0.01886519435 | Q87: 0.01776412079 | R87: 0.02003312381 | S87: 0.001101073561 | T87: 0.001167929463 | U87: No diff
A88: District | B88: E07000118 | D88: Chorley | E88: 81 | F88: 54728 | G88: =E88/F88 -> 0.001480046777 | H88: 1316 | I88: 22618 | J88: =H88/I88 -> 0.05818374746 | K88: 1397 | L88: 77346 | M88: 0.01806169679 | O88: 0.01938982639 | P88: 0.01806169679 | Q88: 0.01714681452 | R88: 0.01902444848 | S88: 0.0009148822704 | T88: 0.0009627516936 | U88: Low
A89: District | B89: E07000119 | D89: Fylde | E89: 64 | F89: 35366 | G89: 0.001809647684 | H89: 1419 | I89: 21035 | J89: 0.06745899691 | K89: 1483 | L89: 56401 | M89: 0.02629386004 | O89: 0.01938982639 | P89: 0.02629386004 | Q89: 0.02500525024 | R89: 0.02764699347 | S89: 0.0012886098 | T89: 0.001353133433 | U89: High
A90: District | B90: E07000120 | D90: Hyndburn | E90: 53 | F90: 35658 | G90: 0.001486342476 | H90: 880 | I90: 14756 | J90: 0.05963675793 | K90: 933 | L90: 50414 | M90: 0.01850676399 | O90: 0.01938982639 | P90: 0.01850676399 | Q90: 0.01736645158 | R90: 0.0197204487 | S90: 0.001140312411 | T90: 0.001213684709 | U90: No diff
A91: District | B91: E07000121 | D91: Lancaster | E91: 94 | F91: 59334 | G91: 0.001584251862 | H91: 1829 | I91: 28474 | J91: 0.06423403807 | K91: 1923 | L91: 87808 | M91: 0.02190005466 | O91: 0.01938982639 | P91: 0.02190005466 | Q91: 0.02095272073 | R91: 0.02288921897 | S91: 0.0009473339314 | T91: 0.0009891643092 | U91: High
A92: District | B92: E07000122 | D92: Pendle | E92: 62 | F92: 40761 | G92: 0.001521061799 | H92: 1010 | I92: 16739 | J92: 0.0603381325 | K92: 1072 | L92: 57500 | M92: 0.01864347826 | O92: 0.01938982639 | P92: 0.01864347826 | Q92: 0.01756962172 | R92: 0.01978164742 | S92: 0.001073856538 | T92: 0.001138169155 | U92: No diff
A93: District | B93: E07000123 | D93: Preston | E93: 83 | F93: 60564 | G93: 0.001370451093 | H93: 1332 | I93: 21013 | J93: 0.06338933041 | K93: 1415 | L93: 81577 | M93: 0.01734557535 | O93: 0.01938982639 | P93: 0.01734557535 | Q93: 0.01647213645 | R93: 0.01826446847 | S93: 0.0008734388913 | T93: 0.0009188931196 | U93: Low
A94: District | B94: E07000124 | D94: Ribble Valley | E94: 46 | F94: 27071 | G94: 0.001699235344 | H94: 875 | I94: 13770 | J94: 0.06354393609 | K94: 921 | L94: 40841 | M94: 0.022550868 | O94: 0.01938982639 | P94: 0.022550868 | Q94: 0.02115525207 | R94: 0.02403629214 | S94: 0.001395615927 | T94: 0.001485424143 | U94: High
A95: District | B95: E07000125 | D95: Rossendale | E95: 51 | F95: 33196 | G95: 0.001536329678 | H95: 753 | I95: 12741 | J95: 0.05910054156 | K95: 804 | L95: 45937 | M95: 0.01750223132 | O95: 0.01938982639 | P95: 0.01750223132 | Q95: 0.01634278228 | R95: 0.01874237088 | S95: 0.00115944904 | T95: 0.001240139565 | U95: Low
A96: District | B96: E07000126 | D96: South Ribble | E96: 79 | F96: 50588 | G96: 0.00156163517 | H96: 1403 | I96: 23067 | J96: 0.06082282048 | K96: 1482 | L96: 73655 | M96: 0.02012083362 | O96: 0.01938982639 | P96: 0.02012083362 | Q96: 0.0191315353 | R96: 0.02116018529 | S96: 0.0009892983205 | T96: 0.001039351675 | U96: No diff
A97: District | B97: E07000127 | D97: West Lancashire | E97: 82 | F97: 48598 | G97: 0.001687312235 | H97: 1489 | I97: 24466 | J97: 0.06085996894 | K97: 1571 | L97: 73064 | M97: 0.02150169714 | O97: 0.01938982639 | P97: 0.02150169714 | Q97: 0.02047482985 | R97: 0.02257887744 | S97: 0.001026867289 | T97: 0.001077180299 | U97: High
A98: District | B98: E07000128 | D98: Wyre | E98: 86 | F98: 47933 | G98: 0.00179417103 | H98: 1939 | I98: 29622 | J98: 0.06545810546 | K98: 2025 | L98: 77555 | M98: 0.02611050222 | O98: 0.01938982639 | P98: 0.02611050222 | Q98: 0.02501146473 | R98: 0.02725648283 | S98: 0.00109903749 | T98: 0.00114598061 | U98: High
D125: Area | E125: 30-64 | F125: 65+
D126: ENGLAND | E126: =E83/K83 -> 0.05307199729 | F126: =H83/K83 -> 0.9469280027
D127: Lancashire (Area team) | E127: =E84/K84 -> 0.05319478908 | F127: =H84/K84 -> 0.9468052109
D128: Blackburn with Darwen | E128: 0.06780923994 | F128: 0.9321907601
D129: Blackpool | E129: 0.05069839628 | F129: 0.9493016037
D130: Burnley | E130: 0.05656759348 | F130: 0.9434324065
D131: Chorley | E131: 0.05798138869 | F131: 0.9420186113
D132: Fylde | E132: 0.04315576534 | F132: 0.9568442347
D133: Hyndburn | E133: 0.05680600214 | F133: 0.9431939979
D134: Lancaster | E134: 0.04888195528 | F134: 0.9511180447
D135: Pendle | E135: 0.0578358209 | F135: 0.9421641791
D136: Preston | E136: 0.05865724382 | F136: 0.9413427562
D137: Ribble Valley | E137: 0.04994571118 | F137: 0.9500542888
D138: Rossendale | E138: 0.06343283582 | F138: 0.9365671642
D139: South Ribble | E139: 0.05330634278 | F139: 0.9466936572
D140: West Lancashire | E140: 0.05219605347 | F140: 0.9478039465
D141: Wyre | E141: 0.0424691358 | F141: 0.9575308642

Sheet Assessments and care plans
A1: Dementia in Lancashire
A3: Recorded dementia assessments and care plans, Lancashire, October 2017
A4: =A6 -> NHS Chorley and South Ribble
A6: NHS Chorley and South Ribble
A8: Assessments for dementia at a GP practice | B8: Number of patients
A9: Recorded of receiving an assessment | B9: =SUM(IF('ass and care plans raw'!$A$7:$A$14='Assessments and care plans'!$A9,IF('ass and care plans raw'!$B$6:$J$6='Assessments and care plans'!$A$6,'ass and care plans raw'!$B$7:$J$14))) -> 800
A10: Recorded as being ‘at risk of dementia’ and declined an assessment | B10: =SUM(IF('ass and care plans raw'!$A$7:$A$14='Assessments and care plans'!$A10,IF('ass and care plans raw'!$B$6:$J$6='Assessments and care plans'!$A$6,'ass and care plans raw'!$B$7:$J$14))) -> 37
A12: Memory assessments and clinics
A13: Record of an initial memory assessment | B13: =SUM(IF('ass and care plans raw'!$A$7:$A$14='Assessments and care plans'!$A13,IF('ass and care plans raw'!$B$6:$J$6='Assessments and care plans'!$A$6,'ass and care plans raw'!$B$7:$J$14))) -> 209
A14: Record of declining an initial memory assessment | B14: =SUM(IF('ass and care plans raw'!$A$7:$A$14='Assessments and care plans'!$A14,IF('ass and care plans raw'!$B$6:$J$6='Assessments and care plans'!$A$6,'ass and care plans raw'!$B$7:$J$14))) -> 3
A15: Record of a referral to a memory clinic | B15: =SUM(IF('ass and care plans raw'!$A$7:$A$14='Assessments and care plans'!$A15,IF('ass and care plans raw'!$B$6:$J$6='Assessments and care plans'!$A$6,'ass and care plans raw'!$B$7:$J$14))) -> 49
A16: Record of declining a referral to a memory clinic | B16: =SUM(IF('ass and care plans raw'!$A$7:$A$14='Assessments and care plans'!$A16,IF('ass and care plans raw'!$B$6:$J$6='Assessments and care plans'!$A$6,'ass and care plans raw'!$B$7:$J$14))) -> 10
A18: Care plans and reviews by a GP practice within the 12 month period
A19: Record of receiving a dementia care plan or dementia care plan review | B19: =SUM(IF('ass and care plans raw'!$A$7:$A$14='Assessments and care plans'!$A19,IF('ass and care plans raw'!$B$6:$J$6='Assessments and care plans'!$A$6,'ass and care plans raw'!$B$7:$J$14))) -> 1060
A20: Record of declining a dementia care plan or declining a dementia care plan review | B20: =SUM(IF('ass and care plans raw'!$A$7:$A$14='Assessments and care plans'!$A20,IF('ass and care plans raw'!$B$6:$J$6='Assessments and care plans'!$A$6,'ass and care plans raw'!$B$7:$J$14))) -> 10
A23: Source: NHS Digital

Sheet ass and care plans raw (hidden)
A6: MEASURE | B6: NHS Blackburn with Darwen | C6: NHS Blackpool | D6: NHS Chorley and South Ribble | E6: NHS East Lancashire | F6: NHS Fylde & Wyre | G6: NHS Greater Preston | H6: NHS Morecambe Bay | I6: NHS West Lancashire | J6: LANCASHIRE AND SOUTH CUMBRIA
A7: Record of a referral to a memory clinic | B7: 51 | C7: 79 | D7: 49 | E7: 525 | F7: 165 | G7: 58 | H7: 146 | I7: 37 | J7: =SUM(B7:I7) -> 1110
A8: Record of an initial memory assessment | B8: 534 | C8: 306 | D8: 209 | E8: 2789 | F8: 495 | G8: 446 | H8: 486 | I8: 885 | J8: =SUM(B8:I8) -> 6150
A9: Record of declining a dementia care plan or declining a dementia care plan review | B9: 5 | C9: 43 | D9: 10 | E9: 17 | F9: 22 | G9: 3 | H9: 9 | I9: 1 | J9: 110
A10: Record of declining a referral to a memory clinic | B10: 3 | C10: 17 | D10: 10 | E10: 53 | F10: 9 | G10: 10 | H10: 93 | I10: 12 | J10: 207
A11: Record of declining an initial memory assessment | B11: 21 | C11: 15 | D11: 3 | E11: 114 | F11: 13 | G11: 29 | H11: 24 | I11: 14 | J11: 233
A12: Record of receiving a dementia care plan or dementia care plan review | B12: 836 | C12: 1168 | D12: 1060 | E12: 2190 | F12: 1441 | G12: 1000 | H12: 2374 | I12: 717 | J12: 10786
A13: Recorded as being ‘at risk of dementia’ and declined an assessment | B13: 74 | C13: 404 | D13: 37 | E13: 645 | F13: 49 | G13: 159 | H13: 445 | I13: 4 | J13: 1817
A14: Recorded of receiving an assessment | B14: 1170 | C14: 764 | D14: 800 | E14: 5027 | F14: 1016 | G14: 1206 | H14: 1683 | I14: 1511 | J14: 13177
A17: LANCASHIRE AND SOUTH CUMBRIA
A18: NHS Blackburn with Darwen
A19: NHS Blackpool
A20: NHS Chorley and South Ribble
A21: NHS East Lancashire
A22: NHS Fylde & Wyre
A23: NHS Greater Preston
A24: NHS Morecambe Bay
A25: NHS West Lancashire
A27: ASS_Received_GP_Mem_Clinic | B27: Record of a referral to a memory clinic
A28: ASS_Received_GP_Mem_Ass | B28: Record of an initial memory assessment
A29: DIAG_Declined_Care_Plan | B29: Record of declining a dementia care plan or declining a dementia care plan review
A30: ASS_Declined_GP_Mem_Clinic | B30: Record of declining a referral to a memory clinic
A31: ASS_Declined_GP_Mem_Ass | B31: Record of declining an initial memory assessment
A32: DIAG_Received_Care_Plan | B32: Record of receiving a dementia care plan or dementia care plan review
A33: ASS_Declined_GP | B33: Recorded as being ‘at risk of dementia’ and declined an assessment
A34: ASS_Received_GP | B34: Recorded of receiving an assessment

Sheet Dementia diagnosis rates
A1: Dementia in Lancashire
A3: CCG diagnosis rates
A4: =A13 -> October : 2017
A5: =D14 & " : " &A4 -> Dementia diagnosis rate (%) : October : 2017
A6: The dementia diagnosis rates have been calculated using the monthly HSCIC QoF extracts and the CFAS II estimated aged 65+ dementia prevalence. These rates are influenced not only by a patient receiving a dementia diagnosis but also by patients registering or leaving a CCG and patients who have died and been removed from the dementia register. Users should note that due to the way in which the monthly extracts are taken, not all practices are included within each extract.
B11: << Select month
A12: *Data available for months May 2016 to October 2017
A13: October : 2017 | B13: =VLOOKUP(A13,'diagnosis rate backing data2'!A2:B14,2,FALSE) ->  | D13: rate | E13: 66.7
A14: CCG | B14: Dementia register (65+) | C14: Estimated dementia 65+ prevalence (CFAS II)* | D14: Dementia diagnosis rate (%) | E14: Above or below target (66.7%) | F14: Significance | G14: Target | I14: Lower C.I | J14: Upper C.I | K14: L C.I | L14: U C.I
A15: ENGLAND | B15: =SUM(IF('diagnosis rate backing data2'!$A$27:$A$36='Dementia diagnosis rates'!A15,IF('diagnosis rate backing data2'!$B$26:$S$26='Dementia diagnosis rates'!$A$13,'diagnosis rate backing data2'!$B$27:$S$36))) -> 439509 | C15: =SUM(IF('diagnosis rate backing data2'!$A$41:$A$50='Dementia diagnosis rates'!$A15,IF('diagnosis rate backing data2'!$B$40:$S$40=$A$13,'diagnosis rate backing data2'!$B$41:$S$50))) -> 643033.3 | D15: =SUM(IF('diagnosis rate backing data2'!$A$56:$A$65=A15,IF('diagnosis rate backing data2'!$B$54:$BC$54='Dementia diagnosis rates'!$A$13,IF('diagnosis rate backing data2'!$B$55:$BC$55='Dementia diagnosis rates'!D$13,'diagnosis rate backing data2'!$B$56:$BC$65)))) -> 68.6 | E15: =IF(D15>$E$13,"p","q") -> p | F15: =INDEX('diagnosis rate backing data2'!$A$70:$S$80,MATCH('Dementia diagnosis rates'!A15,'diagnosis rate backing data2'!$A$70:$A$80,0),MATCH('Dementia diagnosis rates'!$A$13,'diagnosis rate backing data2'!$A$70:$S$70,0)) -> In line | G15: =$E$13 -> 66.7 | I15: =SUM(IF('diagnosis rate backing data2'!$A$56:$A$65='Dementia diagnosis rates'!A15,IF('diagnosis rate backing data2'!$B$54:$BC$54='Dementia diagnosis rates'!$A$13,IF('diagnosis rate backing data2'!$B$55:$BC$55='Dementia diagnosis rates'!I$14,'diagnosis rate backing data2'!$B$56:$BC$65)))) -> 61.7 | J15: =SUM(IF('diagnosis rate backing data2'!$A$56:$A$65='Dementia diagnosis rates'!A15,IF('diagnosis rate backing data2'!$B$54:$BC$54='Dementia diagnosis rates'!$A$13,IF('diagnosis rate backing data2'!$B$55:$BC$55='Dementia diagnosis rates'!J$14,'diagnosis rate backing data2'!$B$56:$BC$65)))) -> 74.3 | K15: =D15-I15 -> 6.9 | L15: =J15-D15 -> 5.7
A16: LANCASHIRE AND SOUTH CUMBRIA | B16: =SUM(IF('diagnosis rate backing data2'!$A$27:$A$36='Dementia diagnosis rates'!A16,IF('diagnosis rate backing data2'!$B$26:$S$26='Dementia diagnosis rates'!$A$13,'diagnosis rate backing data2'!$B$27:$S$36))) -> 15556 | C16: =SUM(IF('diagnosis rate backing data2'!$A$41:$A$50='Dementia diagnosis rates'!$A16,IF('diagnosis rate backing data2'!$B$40:$S$40=$A$13,'diagnosis rate backing data2'!$B$41:$S$50))) -> 20944.5 | D16: =SUM(IF('diagnosis rate backing data2'!$A$56:$A$65=A16,IF('diagnosis rate backing data2'!$B$54:$BC$54='Dementia diagnosis rates'!$A$13,IF('diagnosis rate backing data2'!$B$55:$BC$55='Dementia diagnosis rates'!D$13,'diagnosis rate backing data2'!$B$56:$BC$65)))) -> 74.3 | E16: =IF(D16>$E$13,"p","q") -> p | F16: =INDEX('diagnosis rate backing data2'!$A$70:$S$80,MATCH('Dementia diagnosis rates'!A16,'diagnosis rate backing data2'!$A$70:$A$80,0),MATCH('Dementia diagnosis rates'!$A$13,'diagnosis rate backing data2'!$A$70:$S$70,0)) -> Above | G16: =$E$13 -> 66.7 | I16: =SUM(IF('diagnosis rate backing data2'!$A$56:$A$65='Dementia diagnosis rates'!A16,IF('diagnosis rate backing data2'!$B$54:$BC$54='Dementia diagnosis rates'!$A$13,IF('diagnosis rate backing data2'!$B$55:$BC$55='Dementia diagnosis rates'!I$14,'diagnosis rate backing data2'!$B$56:$BC$65)))) -> 66.8 | J16: =SUM(IF('diagnosis rate backing data2'!$A$56:$A$65='Dementia diagnosis rates'!A16,IF('diagnosis rate backing data2'!$B$54:$BC$54='Dementia diagnosis rates'!$A$13,IF('diagnosis rate backing data2'!$B$55:$BC$55='Dementia diagnosis rates'!J$14,'diagnosis rate backing data2'!$B$56:$BC$65)))) -> 80.6 | K16: =D16-I16 -> 7.5 | L16: =J16-D16 -> 6.3
A17: NHS Blackburn with Darwen | B17: =SUM(IF('diagnosis rate backing data2'!$A$27:$A$36='Dementia diagnosis rates'!A17,IF('diagnosis rate backing data2'!$B$26:$S$26='Dementia diagnosis rates'!$A$13,'diagnosis rate backing data2'!$B$27:$S$36))) -> 1127 | C17: =SUM(IF('diagnosis rate backing data2'!$A$41:$A$50='Dementia diagnosis rates'!$A17,IF('diagnosis rate backing data2'!$B$40:$S$40=$A$13,'diagnosis rate backing data2'!$B$41:$S$50))) -> 1466.1 | D17: =SUM(IF('diagnosis rate backing data2'!$A$56:$A$65=A17,IF('diagnosis rate backing data2'!$B$54:$BC$54='Dementia diagnosis rates'!$A$13,IF('diagnosis rate backing data2'!$B$55:$BC$55='Dementia diagnosis rates'!D$13,'diagnosis rate backing data2'!$B$56:$BC$65)))) -> 76.9 | E17: p | F17: =INDEX('diagnosis rate backing data2'!$A$70:$S$80,MATCH('Dementia diagnosis rates'!A17,'diagnosis rate backing data2'!$A$70:$A$80,0),MATCH('Dementia diagnosis rates'!$A$13,'diagnosis rate backing data2'!$A$70:$S$70,0)) -> Above | G17: 66.7 | I17: =SUM(IF('diagnosis rate backing data2'!$A$56:$A$65='Dementia diagnosis rates'!A17,IF('diagnosis rate backing data2'!$B$54:$BC$54='Dementia diagnosis rates'!$A$13,IF('diagnosis rate backing data2'!$B$55:$BC$55='Dementia diagnosis rates'!I$14,'diagnosis rate backing data2'!$B$56:$BC$65)))) -> 67.9 | J17: =SUM(IF('diagnosis rate backing data2'!$A$56:$A$65='Dementia diagnosis rates'!A17,IF('diagnosis rate backing data2'!$B$54:$BC$54='Dementia diagnosis rates'!$A$13,IF('diagnosis rate backing data2'!$B$55:$BC$55='Dementia diagnosis rates'!J$14,'diagnosis rate backing data2'!$B$56:$BC$65)))) -> 84.7 | K17: =D17-I17 -> 9 | L17: =J17-D17 -> 7.8
A18: NHS Blackpool | B18: =SUM(IF('diagnosis rate backing data2'!$A$27:$A$36='Dementia diagnosis rates'!A18,IF('diagnosis rate backing data2'!$B$26:$S$26='Dementia diagnosis rates'!$A$13,'diagnosis rate backing data2'!$B$27:$S$36))) -> 1790 | C18: =SUM(IF('diagnosis rate backing data2'!$A$41:$A$50='Dementia diagnosis rates'!$A18,IF('diagnosis rate backing data2'!$B$40:$S$40=$A$13,'diagnosis rate backing data2'!$B$41:$S$50))) -> 2216 | D18: =SUM(IF('diagnosis rate backing data2'!$A$56:$A$65=A18,IF('diagnosis rate backing data2'!$B$54:$BC$54='Dementia diagnosis rates'!$A$13,IF('diagnosis rate backing data2'!$B$55:$BC$55='Dementia diagnosis rates'!D$13,'diagnosis rate backing data2'!$B$56:$BC$65)))) -> 80.8 | E18: p | F18: =INDEX('diagnosis rate backing data2'!$A$70:$S$80,MATCH('Dementia diagnosis rates'!A18,'diagnosis rate backing data2'!$A$70:$A$80,0),MATCH('Dementia diagnosis rates'!$A$13,'diagnosis rate backing data2'!$A$70:$S$70,0)) -> Above | G18: 66.7 | I18: =SUM(IF('diagnosis rate backing data2'!$A$56:$A$65='Dementia diagnosis rates'!A18,IF('diagnosis rate backing data2'!$B$54:$BC$54='Dementia diagnosis rates'!$A$13,IF('diagnosis rate backing data2'!$B$55:$BC$55='Dementia diagnosis rates'!I$14,'diagnosis rate backing data2'!$B$56:$BC$65)))) -> 71.9 | J18: =SUM(IF('diagnosis rate backing data2'!$A$56:$A$65='Dementia diagnosis rates'!A18,IF('diagnosis rate backing data2'!$B$54:$BC$54='Dementia diagnosis rates'!$A$13,IF('diagnosis rate backing data2'!$B$55:$BC$55='Dementia diagnosis rates'!J$14,'diagnosis rate backing data2'!$B$56:$BC$65)))) -> 88.4 | K18: =D18-I18 -> 8.9 | L18: =J18-D18 -> 7.6
A19: NHS Chorley and South Ribble | B19: =SUM(IF('diagnosis rate backing data2'!$A$27:$A$36='Dementia diagnosis rates'!A19,IF('diagnosis rate backing data2'!$B$26:$S$26='Dementia diagnosis rates'!$A$13,'diagnosis rate backing data2'!$B$27:$S$36))) -> 1468 | C19: =SUM(IF('diagnosis rate backing data2'!$A$41:$A$50='Dementia diagnosis rates'!$A19,IF('diagnosis rate backing data2'!$B$40:$S$40=$A$13,'diagnosis rate backing data2'!$B$41:$S$50))) -> 2104.2 | D19: =SUM(IF('diagnosis rate backing data2'!$A$56:$A$65=A19,IF('diagnosis rate backing data2'!$B$54:$BC$54='Dementia diagnosis rates'!$A$13,IF('diagnosis rate backing data2'!$B$55:$BC$55='Dementia diagnosis rates'!D$13,'diagnosis rate backing data2'!$B$56:$BC$65)))) -> 69.8 | E19: p | F19: =INDEX('diagnosis rate backing data2'!$A$70:$S$80,MATCH('Dementia diagnosis rates'!A19,'diagnosis rate backing data2'!$A$70:$A$80,0),MATCH('Dementia diagnosis rates'!$A$13,'diagnosis rate backing data2'!$A$70:$S$70,0)) -> In line | G19: 66.7 | I19: =SUM(IF('diagnosis rate backing data2'!$A$56:$A$65='Dementia diagnosis rates'!A19,IF('diagnosis rate backing data2'!$B$54:$BC$54='Dementia diagnosis rates'!$A$13,IF('diagnosis rate backing data2'!$B$55:$BC$55='Dementia diagnosis rates'!I$14,'diagnosis rate backing data2'!$B$56:$BC$65)))) -> 61.8 | J19: =SUM(IF('diagnosis rate backing data2'!$A$56:$A$65='Dementia diagnosis rates'!A19,IF('diagnosis rate backing data2'!$B$54:$BC$54='Dementia diagnosis rates'!$A$13,IF('diagnosis rate backing data2'!$B$55:$BC$55='Dementia diagnosis rates'!J$14,'diagnosis rate backing data2'!$B$56:$BC$65)))) -> 76.7 | K19: 8 | L19: 6.9
A20: NHS East Lancashire | B20: =SUM(IF('diagnosis rate backing data2'!$A$27:$A$36='Dementia diagnosis rates'!A20,IF('diagnosis rate backing data2'!$B$26:$S$26='Dementia diagnosis rates'!$A$13,'diagnosis rate backing data2'!$B$27:$S$36))) -> 2908 | C20: =SUM(IF('diagnosis rate backing data2'!$A$41:$A$50='Dementia diagnosis rates'!$A20,IF('diagnosis rate backing data2'!$B$40:$S$40=$A$13,'diagnosis rate backing data2'!$B$41:$S$50))) -> 3967.2 | D20: =SUM(IF('diagnosis rate backing data2'!$A$56:$A$65=A20,IF('diagnosis rate backing data2'!$B$54:$BC$54='Dementia diagnosis rates'!$A$13,IF('diagnosis rate backing data2'!$B$55:$BC$55='Dementia diagnosis rates'!D$13,'diagnosis rate backing data2'!$B$56:$BC$65)))) -> 73.3 | E20: p | F20: =INDEX('diagnosis rate backing data2'!$A$70:$S$80,MATCH('Dementia diagnosis rates'!A20,'diagnosis rate backing data2'!$A$70:$A$80,0),MATCH('Dementia diagnosis rates'!$A$13,'diagnosis rate backing data2'!$A$70:$S$70,0)) -> In line | G20: 66.7 | I20: =SUM(IF('diagnosis rate backing data2'!$A$56:$A$65='Dementia diagnosis rates'!A20,IF('diagnosis rate backing data2'!$B$54:$BC$54='Dementia diagnosis rates'!$A$13,IF('diagnosis rate backing data2'!$B$55:$BC$55='Dementia diagnosis rates'!I$14,'diagnosis rate backing data2'!$B$56:$BC$65)))) -> 65.4 | J20: =SUM(IF('diagnosis rate backing data2'!$A$56:$A$65='Dementia diagnosis rates'!A20,IF('diagnosis rate backing data2'!$B$54:$BC$54='Dementia diagnosis rates'!$A$13,IF('diagnosis rate backing data2'!$B$55:$BC$55='Dementia diagnosis rates'!J$14,'diagnosis rate backing data2'!$B$56:$BC$65)))) -> 80 | K20: 7.9 | L20: 6.7
A21: NHS Fylde & Wyre | B21: =SUM(IF('diagnosis rate backing data2'!$A$27:$A$36='Dementia diagnosis rates'!A21,IF('diagnosis rate backing data2'!$B$26:$S$26='Dementia diagnosis rates'!$A$13,'diagnosis rate backing data2'!$B$27:$S$36))) -> 2037 | C21: =SUM(IF('diagnosis rate backing data2'!$A$41:$A$50='Dementia diagnosis rates'!$A21,IF('diagnosis rate backing data2'!$B$40:$S$40=$A$13,'diagnosis rate backing data2'!$B$41:$S$50))) -> 2631.7 | D21: =SUM(IF('diagnosis rate backing data2'!$A$56:$A$65=A21,IF('diagnosis rate backing data2'!$B$54:$BC$54='Dementia diagnosis rates'!$A$13,IF('diagnosis rate backing data2'!$B$55:$BC$55='Dementia diagnosis rates'!D$13,'diagnosis rate backing data2'!$B$56:$BC$65)))) -> 77.4 | E21: p | F21: =INDEX('diagnosis rate backing data2'!$A$70:$S$80,MATCH('Dementia diagnosis rates'!A21,'diagnosis rate backing data2'!$A$70:$A$80,0),MATCH('Dementia diagnosis rates'!$A$13,'diagnosis rate backing data2'!$A$70:$S$70,0)) -> Above | G21: 66.7 | I21: =SUM(IF('diagnosis rate backing data2'!$A$56:$A$65='Dementia diagnosis rates'!A21,IF('diagnosis rate backing data2'!$B$54:$BC$54='Dementia diagnosis rates'!$A$13,IF('diagnosis rate backing data2'!$B$55:$BC$55='Dementia diagnosis rates'!I$14,'diagnosis rate backing data2'!$B$56:$BC$65)))) -> 69.2 | J21: =SUM(IF('diagnosis rate backing data2'!$A$56:$A$65='Dementia diagnosis rates'!A21,IF('diagnosis rate backing data2'!$B$54:$BC$54='Dementia diagnosis rates'!$A$13,IF('diagnosis rate backing data2'!$B$55:$BC$55='Dementia diagnosis rates'!J$14,'diagnosis rate backing data2'!$B$56:$BC$65)))) -> 84.7 | K21: 8.2 | L21: 7.3
A22: NHS Greater Preston | B22: =SUM(IF('diagnosis rate backing data2'!$A$27:$A$36='Dementia diagnosis rates'!A22,IF('diagnosis rate backing data2'!$B$26:$S$26='Dementia diagnosis rates'!$A$13,'diagnosis rate backing data2'!$B$27:$S$36))) -> 1474 | C22: =SUM(IF('diagnosis rate backing data2'!$A$41:$A$50='Dementia diagnosis rates'!$A22,IF('diagnosis rate backing data2'!$B$40:$S$40=$A$13,'diagnosis rate backing data2'!$B$41:$S$50))) -> 2212 | D22: =SUM(IF('diagnosis rate backing data2'!$A$56:$A$65=A22,IF('diagnosis rate backing data2'!$B$54:$BC$54='Dementia diagnosis rates'!$A$13,IF('diagnosis rate backing data2'!$B$55:$BC$55='Dementia diagnosis rates'!D$13,'diagnosis rate backing data2'!$B$56:$BC$65)))) -> 66.6 | E22: q | F22: =INDEX('diagnosis rate backing data2'!$A$70:$S$80,MATCH('Dementia diagnosis rates'!A22,'diagnosis rate backing data2'!$A$70:$A$80,0),MATCH('Dementia diagnosis rates'!$A$13,'diagnosis rate backing data2'!$A$70:$S$70,0)) -> In line | G22: 66.7 | I22: =SUM(IF('diagnosis rate backing data2'!$A$56:$A$65='Dementia diagnosis rates'!A22,IF('diagnosis rate backing data2'!$B$54:$BC$54='Dementia diagnosis rates'!$A$13,IF('diagnosis rate backing data2'!$B$55:$BC$55='Dementia diagnosis rates'!I$14,'diagnosis rate backing data2'!$B$56:$BC$65)))) -> 59.2 | J22: =SUM(IF('diagnosis rate backing data2'!$A$56:$A$65='Dementia diagnosis rates'!A22,IF('diagnosis rate backing data2'!$B$54:$BC$54='Dementia diagnosis rates'!$A$13,IF('diagnosis rate backing data2'!$B$55:$BC$55='Dementia diagnosis rates'!J$14,'diagnosis rate backing data2'!$B$56:$BC$65)))) -> 73.1 | K22: 7.4 | L22: 6.5
A23: NHS Morecambe Bay | B23: =SUM(IF('diagnosis rate backing data2'!$A$27:$A$36='Dementia diagnosis rates'!A23,IF('diagnosis rate backing data2'!$B$26:$S$26='Dementia diagnosis rates'!$A$13,'diagnosis rate backing data2'!$B$27:$S$36))) -> 3692 | C23: =SUM(IF('diagnosis rate backing data2'!$A$41:$A$50='Dementia diagnosis rates'!$A23,IF('diagnosis rate backing data2'!$B$40:$S$40=$A$13,'diagnosis rate backing data2'!$B$41:$S$50))) -> 4932.3 | D23: =SUM(IF('diagnosis rate backing data2'!$A$56:$A$65=A23,IF('diagnosis rate backing data2'!$B$54:$BC$54='Dementia diagnosis rates'!$A$13,IF('diagnosis rate backing data2'!$B$55:$BC$55='Dementia diagnosis rates'!D$13,'diagnosis rate backing data2'!$B$56:$BC$65)))) -> 74.9 | E23: p | F23: =INDEX('diagnosis rate backing data2'!$A$70:$S$80,MATCH('Dementia diagnosis rates'!A23,'diagnosis rate backing data2'!$A$70:$A$80,0),MATCH('Dementia diagnosis rates'!$A$13,'diagnosis rate backing data2'!$A$70:$S$70,0)) -> Above | G23: 66.7 | I23: =SUM(IF('diagnosis rate backing data2'!$A$56:$A$65='Dementia diagnosis rates'!A23,IF('diagnosis rate backing data2'!$B$54:$BC$54='Dementia diagnosis rates'!$A$13,IF('diagnosis rate backing data2'!$B$55:$BC$55='Dementia diagnosis rates'!I$14,'diagnosis rate backing data2'!$B$56:$BC$65)))) -> 67 | J23: =SUM(IF('diagnosis rate backing data2'!$A$56:$A$65='Dementia diagnosis rates'!A23,IF('diagnosis rate backing data2'!$B$54:$BC$54='Dementia diagnosis rates'!$A$13,IF('diagnosis rate backing data2'!$B$55:$BC$55='Dementia diagnosis rates'!J$14,'diagnosis rate backing data2'!$B$56:$BC$65)))) -> 81.5 | K23: 7.9 | L23: 6.6
A24: NHS West Lancashire | B24: =SUM(IF('diagnosis rate backing data2'!$A$27:$A$36='Dementia diagnosis rates'!A24,IF('diagnosis rate backing data2'!$B$26:$S$26='Dementia diagnosis rates'!$A$13,'diagnosis rate backing data2'!$B$27:$S$36))) -> 1060 | C24: =SUM(IF('diagnosis rate backing data2'!$A$41:$A$50='Dementia diagnosis rates'!$A24,IF('diagnosis rate backing data2'!$B$40:$S$40=$A$13,'diagnosis rate backing data2'!$B$41:$S$50))) -> 1415 | D24: =SUM(IF('diagnosis rate backing data2'!$A$56:$A$65=A24,IF('diagnosis rate backing data2'!$B$54:$BC$54='Dementia diagnosis rates'!$A$13,IF('diagnosis rate backing data2'!$B$55:$BC$55='Dementia diagnosis rates'!D$13,'diagnosis rate backing data2'!$B$56:$BC$65)))) -> 74.9 | E24: p | F24: =INDEX('diagnosis rate backing data2'!$A$70:$S$80,MATCH('Dementia diagnosis rates'!A24,'diagnosis rate backing data2'!$A$70:$A$80,0),MATCH('Dementia diagnosis rates'!$A$13,'diagnosis rate backing data2'!$A$70:$S$70,0)) -> In line | G24: 66.7 | I24: =SUM(IF('diagnosis rate backing data2'!$A$56:$A$65='Dementia diagnosis rates'!A24,IF('diagnosis rate backing data2'!$B$54:$BC$54='Dementia diagnosis rates'!$A$13,IF('diagnosis rate backing data2'!$B$55:$BC$55='Dementia diagnosis rates'!I$14,'diagnosis rate backing data2'!$B$56:$BC$65)))) -> 66.1 | J24: =SUM(IF('diagnosis rate backing data2'!$A$56:$A$65='Dementia diagnosis rates'!A24,IF('diagnosis rate backing data2'!$B$54:$BC$54='Dementia diagnosis rates'!$A$13,IF('diagnosis rate backing data2'!$B$55:$BC$55='Dementia diagnosis rates'!J$14,'diagnosis rate backing data2'!$B$56:$BC$65)))) -> 82.6 | K24: 8.8 | L24: 7.7
A25: * CFAS estimate is based on the GP registered populations
A29: CCG Dementia diagnosis rate trend lines
A30: May 2016 - October 2017
A31: NHS Blackburn with Darwen | B31: =A29 & " : " & A31 -> CCG Dementia diagnosis rate trend lines : NHS Blackburn with Darwen
B33: << Select CCG
A91: NHS East Lancashire

Sheet diagnosis rate backing data2 (hidden)
A2: May : 2016 | B2: 2016
A3: June : 2016 | B3: 2016
A4: July : 2016 | B4: 2016
A5: August : 2016 | B5: 2016
A6: September : 2016 | B6: 2016
A7: October : 2016 | B7: 2016
A8: November : 2016 | B8: 2016
A9: December : 2016 | B9: 2016
A10: January : 2017 | B10: 2017
A11: February : 2017 | B11: 2017
A12: March : 2017 | B12: 2017
A13: April : 2017 | B13: 2017
A14: May : 2017 | B14: 2017
A15: June : 2017 | B15: 2017
A16: July : 2017 | B16: 2017
A17: August : 2017 | B17: 2017
A18: September : 2017 | B18: 2017
A19: October : 2017 | B19: 2017
A25: 65+
A26: Diagnosed patients | B26: May : 2016 | C26: June : 2016 | D26: July : 2016 | E26: August : 2016 | F26: September : 2016 | G26: October : 2016 | H26: November : 2016 | I26: December : 2016 | J26: January : 2017 | K26: February : 2017 | L26: March : 2017 | M26: April : 2017 | N26: May : 2017 | O26: June : 2017 | P26: July : 2017 | Q26: August : 2017 | R26: September : 2017 | S26: October : 2017
A27: ENGLAND | B27: 421791 | C27: 424390 | D27: 427028 | E27: 429332 | F27: 428912 | G27: 430121 | H27: 431786 | I27: 431019 | J27: 429421 | K27: 428937 | L27: 431226 | M27: 432175 | N27: 432478 | O27: 431935 | P27: 433793 | Q27: 434127 | R27: 436777 | S27: 439509
A28: LANCASHIRE AND SOUTH CUMBRIA | B28: 14847 | C28: 14994 | D28: 15064 | E28: 15215 | F28: 14976 | G28: 14991 | H28: 15020 | I28: 14926 | J28: 14869 | K28: 14901 | L28: 14937 | M28: 15066 | N28: 15079 | O28: 15069 | P28: 15215 | Q28: 15282 | R28: 15401 | S28: 15556
A29: NHS Blackburn with Darwen | B29: 1051 | C29: 1056 | D29: 1056 | E29: 1045 | F29: 1040 | G29: 1045 | H29: 1047 | I29: 1035 | J29: 1030 | K29: 1036 | L29: 1043 | M29: 1042 | N29: 1046 | O29: 1057 | P29: 997 | Q29: 977 | R29: 1014 | S29: 1127
A30: NHS Blackpool | B30: 1650 | C30: 1663 | D30: 1673 | E30: 1696 | F30: 1718 | G30: 1734 | H30: 1736 | I30: 1741 | J30: 1710 | K30: 1715 | L30: 1720 | M30: 1726 | N30: 1727 | O30: 1742 | P30: 1757 | Q30: 1774 | R30: 1783 | S30: 1790
A31: NHS Chorley and South Ribble | B31: 1368 | C31: 1386 | D31: 1395 | E31: 1396 | F31: 1324 | G31: 1319 | H31: 1314 | I31: 1307 | J31: 1389 | K31: 1393 | L31: 1398 | M31: 1408 | N31: 1407 | O31: 1422 | P31: 1431 | Q31: 1435 | R31: 1465 | S31: 1468
A32: NHS East Lancashire | B32: 2851 | C32: 2903 | D32: 2856 | E32: 2861 | F32: 2794 | G32: 2776 | H32: 2785 | I32: 2776 | J32: 2741 | K32: 2748 | L32: 2786 | M32: 2808 | N32: 2801 | O32: 2818 | P32: 2829 | Q32: 2853 | R32: 2865 | S32: 2908
A33: NHS Fylde & Wyre | B33: 1817 | C33: 1825 | D33: 1854 | E33: 1859 | F33: 1881 | G33: 1894 | H33: 1920 | I33: 1904 | J33: 1872 | K33: 1890 | L33: 1909 | M33: 1949 | N33: 1959 | O33: 1977 | P33: 1993 | Q33: 2037 | R33: 2034 | S33: 2037
A34: NHS Greater Preston | B34: 1450 | C34: 1470 | D34: 1504 | E34: 1519 | F34: 1502 | G34: 1506 | H34: 1525 | I34: 1500 | J34: 1456 | K34: 1447 | L34: 1428 | M34: 1431 | N34: 1440 | O34: 1443 | P34: 1461 | Q34: 1475 | R34: 1477 | S34: 1474
A35: NHS Morecambe Bay | B35: 3628 | C35: 3656 | D35: 3678 | E35: 3788 | F35: 3670 | G35: 3663 | H35: 3640 | I35: 3617 | J35: 3621 | K35: 3625 | L35: 3617 | M35: 3663 | N35: 3646 | O35: 3656 | P35: 3682 | Q35: 3697 | R35: 3707 | S35: 3692
A36: NHS West Lancashire | B36: 1032 | C36: 1035 | D36: 1048 | E36: 1051 | F36: 1047 | G36: 1054 | H36: 1053 | I36: 1046 | J36: 1050 | K36: 1047 | L36: 1036 | M36: 1039 | N36: 1053 | O36: 1070 | P36: 1065 | Q36: 1034 | R36: 1056 | S36: 1060
A40: Estimated prev patients | B40: May : 2016 | C40: June : 2016 | D40: July : 2016 | E40: August : 2016 | F40: September : 2016 | G40: October : 2016 | H40: November : 2016 | I40: December : 2016 | J40: January : 2017 | K40: February : 2017 | L40: March : 2017 | M40: April : 2017 | N40: May : 2017 | O40: June : 2017 | P40: July : 2017 | Q40: August : 2017 | R40: September : 2017 | S40: October : 2017
A41: ENGLAND | B41: 626483.2 | C41: 627819.7 | D41: 630057.2 | E41: 631381.4 | F41: 629814.9 | G41: 631012.1 | H41: 631299.9 | I41: 632442.3 | J41: 633253.5 | K41: 633296 | L41: 634707.3 | M41: 636161.2 | N41: 638289.6 | O41: 639997.6 | P41: 639473.4 | Q41: 641022 | R41: 642495.9 | S41: 643033.3
A42: LANCASHIRE AND SOUTH CUMBRIA | B42: 20811.8 | C42: 20855.2 | D42: 20924.4 | E42: 20951 | F42: 20690.8 | G42: 20706.3 | H42: 20590.7 | I42: 20707.4 | J42: 20761.9 | K42: 20771.1 | L42: 20791.6 | M42: 20762.6 | N42: 20901.4 | O42: 20938.2 | P42: 18255.7 | Q42: 20850.8 | R42: 20949.4 | S42: 20944.5
A43: NHS Blackburn with Darwen | B43: 1484.8 | C43: 1485.9 | D43: 1493.9 | E43: 1494 | F43: 1494.1 | G43: 1492.6 | H43: 1491.8 | I43: 1492 | J43: 1486.8 | K43: 1486.6 | L43: 1491.2 | M43: 1492.9 | N43: 1497.8 | O43: 1505.4 | P43: 1344.5 | Q43: 1345.4 | R43: 1351.1 | S43: 1466.1
A44: NHS Blackpool | B44: 2197.3 | C44: 2197.1 | D44: 2204.1 | E44: 2207.2 | F44: 2209.7 | G44: 2211.6 | H44: 2213.9 | I44: 2212.1 | J44: 2200.4 | K44: 2197.8 | L44: 2192.9 | M44: 2197.9 | N44: 2203 | O44: 2207.7 | P44: 2213.2 | Q44: 2217.6 | R44: 2217.1 | S44: 2216
A45: NHS Chorley and South Ribble | B45: 2022.3 | C45: 2029.8 | D45: 2036.1 | E45: 2040.2 | F45: 1929 | G45: 1933.2 | H45: 1931 | I45: 1931.9 | J45: 2051 | K45: 2059.7 | L45: 2063.8 | M45: 2067.1 | N45: 2074.2 | O45: 2078.5 | P45: 2088.1 | Q45: 2097.6 | R45: 2104.2 | S45: 2104.2
A46: NHS East Lancashire | B46: 4016.8 | C46: 4027.4 | D46: 4040.7 | E46: 4046.3 | F46: 3909.6 | G46: 3907 | H46: 3909.7 | I46: 3909.6 | J46: 3896 | K46: 3900.3 | L46: 3906.5 | M46: 3916.3 | N46: 3927 | O46: 3932.3 | P46: 2165.8 | Q46: 3954.4 | R46: 3967.2 | S46: 3967.2
A47: NHS Fylde & Wyre | B47: 2570.6 | C47: 2574.5 | D47: 2576.5 | E47: 2576.5 | F47: 2584.1 | G47: 2586.9 | H47: 2590.6 | I47: 2591.7 | J47: 2582.9 | K47: 2579.6 | L47: 2576.3 | M47: 2585.9 | N47: 2592.8 | O47: 2597.5 | P47: 1405.6 | Q47: 2620.8 | R47: 2631.7 | S47: 2631.7
A48: NHS Greater Preston | B48: 2175.2 | C48: 2182.5 | D48: 2185.9 | E48: 2189.5 | F48: 2153.1 | G48: 2151.8 | H48: 2156.7 | I48: 2160.3 | J48: 2143 | K48: 2142.7 | L48: 2147.8 | M48: 2154.7 | N48: 2156.8 | O48: 2159.6 | P48: 2609 | Q48: 2169.7 | R48: 2212 | S48: 2212
A49: NHS Morecambe Bay | B49: 4942.7 | C49: 4953.5 | D49: 4976.1 | E49: 4981.8 | F49: 4992.2 | G49: 4999.4 | H49: 4876 | I49: 4987.9 | J49: 4979.3 | K49: 4981.2 | L49: 4991.4 | M49: 4921.2 | N49: 5017 | O49: 5018.3 | P49: 5023.9 | Q49: 5036.6 | R49: 5051 | S49: 4932.3
A50: NHS West Lancashire | B50: 1402.2 | C50: 1404.5 | D50: 1411 | E50: 1415.6 | F50: 1418.9 | G50: 1423.8 | H50: 1421 | I50: 1421.9 | J50: 1422.4 | K50: 1423.3 | L50: 1421.8 | M50: 1426.6 | N50: 1432.7 | O50: 1438.9 | P50: 1405.6 | Q50: 1408.8 | R50: 1415 | S50: 1415
B54: May : 2016 | C54: May : 2016 | D54: May : 2016 | E54: June : 2016 | F54: June : 2016 | G54: June : 2016 | H54: July : 2016 | I54: July : 2016 | J54: July : 2016 | K54: August : 2016 | L54: August : 2016 | M54: August : 2016 | N54: September : 2016 | O54: September : 2016 | P54: September : 2016 | Q54: October : 2016 | R54: October : 2016 | S54: October : 2016 | T54: November : 2016 | U54: November : 2016 | V54: November : 2016 | W54: December : 2016 | X54: December : 2016 | Y54: December : 2016 | Z54: January : 2017 | AA54: January : 2017 | AB54: January : 2017 | AC54: February : 2017 | AD54: February : 2017 | AE54: February : 2017 | AF54: March : 2017 | AG54: March : 2017 | AH54: March : 2017 | AI54: April : 2017 | AJ54: April : 2017 | AK54: April : 2017 | AL54: May : 2017 | AM54: May : 2017 | AN54: May : 2017 | AO54: June : 2017 | AP54: June : 2017 | AQ54: June : 2017 | AR54: July : 2017 | AS54: July : 2017 | AT54: July : 2017 | AU54: August : 2017 | AV54: August : 2017 | AW54: August : 2017 | AX54: September : 2017 | AY54: September : 2017 | AZ54: September : 2017 | BA54: October : 2017 | BB54: October : 2017 | BC54: October : 2017
A55: Diagnosis rate | B55: Rate | C55: Lower C.I | D55: Upper C.I | E55: Rate | F55: Lower C.I | G55: Upper C.I | H55: Rate | I55: Lower C.I | J55: Upper C.I | K55: Rate | L55: Lower C.I | M55: Upper C.I | N55: Rate | O55: Lower C.I | P55: Upper C.I | Q55: Rate | R55: Lower C.I | S55: Upper C.I | T55: Rate | U55: Lower C.I | V55: Upper C.I | W55: Rate | X55: Lower C.I | Y55: Upper C.I | Z55: Rate | AA55: Lower C.I | AB55: Upper C.I | AC55: Rate | AD55: Lower C.I | AE55: Upper C.I | AF55: Rate | AG55: Lower C.I | AH55: Upper C.I | AI55: Rate | AJ55: Lower C.I | AK55: Upper C.I | AL55: Rate | AM55: Lower C.I | AN55: Upper C.I | AO55: Rate | AP55: Lower C.I | AQ55: Upper C.I | AR55: Rate | AS55: Lower C.I | AT55: Upper C.I | AU55: Rate | AV55: Lower C.I | AW55: Upper C.I | AX55: Rate | AY55: Lower C.I | AZ55: Upper C.I | BA55: Rate | BB55: Lower C.I | BC55: Upper C.I
A56: ENGLAND | B56: 67.3 | C56: 60.6 | D56: 73 | E56: 67.6 | F56: 60.8 | G56: 73.3 | H56: 67.8 | I56: 61 | J56: 73.5 | K56: 68 | L56: 61.2 | M56: 73.7 | N56: 68.1 | O56: 61.3 | P56: 73.8 | Q56: 68.2 | R56: 61.4 | S56: 73.9 | T56: 68.4 | U56: 61.6 | V56: 74.1 | W56: 68.2 | X56: 61.3 | Y56: 73.8 | Z56: 67.8 | AA56: 61.1 | AB56: 73.5 | AC56: 67.7 | AD56: 61 | AE56: 73.4 | AF56: 67.9 | AG56: 61.2 | AH56: 73.6 | AI56: 67.9 | AJ56: 61.2 | AK56: 73.6 | AL56: 67.8 | AM56: 61 | AN56: 73.4 | AO56: 68 | AP56: 61.2 | AQ56: 73.7 | AR56: 68 | AS56: 61.3 | AT56: 73.7 | AU56: 68.2 | AV56: 61.4 | AW56: 73.9 | AX56: 68.2 | AY56: 61.4 | AZ56: 73.9 | BA56: 68.6 | BB56: 61.7 | BC56: 74.3
A57: LANCASHIRE AND SOUTH CUMBRIA | B57: 71.3 | C57: 64.1 | D57: 77.4 | E57: 71.9 | F57: 64.6 | G57: 78 | H57: 72 | I57: 64.7 | J57: 78.1 | K57: 72.6 | L57: 65.3 | M57: 78.9 | N57: 72.4 | O57: 65 | P57: 78.6 | Q57: 72.4 | R57: 65 | S57: 78.5 | T57: 72.9 | U57: 65.6 | V57: 79.2 | W57: 72.1 | X57: 64.7 | Y57: 78.3 | Z57: 71.6 | AA57: 64.3 | AB57: 77.8 | AC57: 71.7 | AD57: 64.5 | AE57: 77.9 | AF57: 71.8 | AG57: 64.6 | AH57: 78 | AI57: 72.6 | AJ57: 65.2 | AK57: 78.8 | AL57: 72.1 | AM57: 64.8 | AN57: 78.4 | AO57: 72.5 | AP57: 65.2 | AQ57: 78.7 | AR57: 73.2 | AS57: 65.8 | AT57: 79.4 | AU57: 73.6 | AV57: 66.2 | AW57: 79.9 | AX57: 73.9 | AY57: 66.3 | AZ57: 80.1 | BA57: 74.3 | BB57: 66.8 | BC57: 80.6
A58: NHS Blackburn with Darwen | B58: 70.8 | C58: 62.4 | D58: 78.1 | E58: 71.1 | F58: 62.7 | G58: 78.4 | H58: 70.7 | I58: 62.3 | J58: 77.9 | K58: 69.9 | L58: 61.7 | M58: 77.2 | N58: 69.6 | O58: 61.4 | P58: 76.8 | Q58: 70 | R58: 61.8 | S58: 77.2 | T58: 70.2 | U58: 62 | V58: 77.4 | W58: 69.4 | X58: 61.2 | Y58: 76.6 | Z58: 69.3 | AA58: 61.1 | AB58: 76.4 | AC58: 69.7 | AD58: 61.5 | AE58: 76.9 | AF58: 69.9 | AG58: 61.7 | AH58: 77.2 | AI58: 69.8 | AJ58: 61.6 | AK58: 77 | AL58: 69.8 | AM58: 61.6 | AN58: 77 | AO58: 70.2 | AP58: 61.9 | AQ58: 77.4 | AR58: 74.2 | AS58: 65.4 | AT58: 81.8 | AU58: 74 | AV58: 65.3 | AW58: 81.7 | AX58: 75.1 | AY58: 66.2 | AZ58: 82.7 | BA58: 76.9 | BB58: 67.9 | BC58: 84.7
A59: NHS Blackpool | B59: 75.1 | C59: 66.8 | D59: 82.4 | E59: 75.7 | F59: 67.3 | G59: 83 | H59: 75.9 | I59: 67.5 | J59: 83.2 | K59: 76.8 | L59: 68.4 | M59: 84.2 | N59: 77.7 | O59: 69.3 | P59: 85.2 | Q59: 78.4 | R59: 69.8 | S59: 85.9 | T59: 78.4 | U59: 69.9 | V59: 85.9 | W59: 78.7 | X59: 70.1 | Y59: 86.2 | Z59: 77.7 | AA59: 69.1 | AB59: 85.1 | AC59: 78 | AD59: 69.5 | AE59: 85.4 | AF59: 78.4 | AG59: 69.9 | AH59: 85.9 | AI59: 78.5 | AJ59: 69.9 | AK59: 86.1 | AL59: 78.4 | AM59: 69.8 | AN59: 85.9 | AO59: 78.9 | AP59: 70.2 | AQ59: 86.5 | AR59: 79.4 | AS59: 70.7 | AT59: 87 | AU59: 80 | AV59: 71.3 | AW59: 87.7 | AX59: 80.4 | AY59: 71.6 | AZ59: 88 | BA59: 80.8 | BB59: 71.9 | BC59: 88.4
A60: NHS Chorley and South Ribble | B60: 67.6 | C60: 59.8 | D60: 74.4 | E60: 68.3 | F60: 60.4 | G60: 75.1 | H60: 68.5 | I60: 60.6 | J60: 75.3 | K60: 68.4 | L60: 60.6 | M60: 75.3 | N60: 68.6 | O60: 60.6 | P60: 75.5 | Q60: 68.2 | R60: 60.3 | S60: 75.1 | T60: 68 | U60: 60.2 | V60: 74.9 | W60: 67.7 | X60: 59.8 | Y60: 74.5 | Z60: 67.7 | AA60: 59.9 | AB60: 74.4 | AC60: 67.6 | AD60: 59.9 | AE60: 74.3 | AF60: 67.7 | AG60: 60 | AH60: 74.5 | AI60: 68.1 | AJ60: 60.3 | AK60: 74.8 | AL60: 67.8 | AM60: 60.1 | AN60: 74.6 | AO60: 68.4 | AP60: 60.6 | AQ60: 75.2 | AR60: 69.1 | AS60: 61.2 | AT60: 75.9 | AU60: 69 | AV60: 61.1 | AW60: 75.8 | AX60: 69.6 | AY60: 61.6 | AZ60: 76.5 | BA60: 69.8 | BB60: 61.8 | BC60: 76.7
A61: NHS East Lancashire | B61: 71 | C61: 63.3 | D61: 77.5 | E61: 72.1 | F61: 64.3 | G61: 78.7 | H61: 70.7 | I61: 63.1 | J61: 77.2 | K61: 70.7 | L61: 63 | M61: 77.2 | N61: 71.5 | O61: 63.6 | P61: 78 | Q61: 71.1 | R61: 63.4 | S61: 77.6 | T61: 71.2 | U61: 63.6 | V61: 77.9 | W61: 71 | X61: 63.4 | Y61: 77.5 | Z61: 70.4 | AA61: 62.8 | AB61: 76.8 | AC61: 70.5 | AD61: 62.8 | AE61: 76.9 | AF61: 71.3 | AG61: 63.6 | AH61: 77.9 | AI61: 71.7 | AJ61: 64 | AK61: 78.4 | AL61: 71.3 | AM61: 63.7 | AN61: 77.9 | AO61: 71.7 | AP61: 63.9 | AQ61: 78.2 | AR61: 67.5 | AS61: 59.9 | AT61: 74 | AU61: 72.1 | AV61: 64.4 | AW61: 78.8 | AX61: 72.2 | AY61: 64.5 | AZ61: 78.8 | BA61: 73.3 | BB61: 65.4 | BC61: 80
A62: NHS Fylde & Wyre | B62: 70.7 | C62: 63.1 | D62: 77.4 | E62: 70.9 | F62: 63.2 | G62: 77.6 | H62: 72 | I62: 64.2 | J62: 78.8 | K62: 72.2 | L62: 64.4 | M62: 79 | N62: 72.8 | O62: 64.9 | P62: 79.7 | Q62: 73.2 | R62: 65.3 | S62: 80.1 | T62: 74.1 | U62: 66.1 | V62: 81.1 | W62: 73.5 | X62: 65.6 | Y62: 80.4 | Z62: 72.5 | AA62: 64.7 | AB62: 79.3 | AC62: 73.3 | AD62: 65.4 | AE62: 80.2 | AF62: 74.1 | AG62: 66.1 | AH62: 81 | AI62: 75.4 | AJ62: 67.3 | AK62: 82.4 | AL62: 75.6 | AM62: 67.4 | AN62: 82.6 | AO62: 76.1 | AP62: 68 | AQ62: 83.2 | AR62: 75.8 | AS62: 66.9 | AT62: 83.5 | AU62: 77.7 | AV62: 69.4 | AW62: 85 | AX62: 77.3 | AY62: 69.1 | AZ62: 84.5 | BA62: 77.4 | BB62: 69.2 | BC62: 84.7
A63: NHS Greater Preston | B63: 66.7 | C63: 59.2 | D63: 73.2 | E63: 67.4 | F63: 59.8 | G63: 73.9 | H63: 68.8 | I63: 61.1 | J63: 75.6 | K63: 69.4 | L63: 61.6 | M63: 76.1 | N63: 69.8 | O63: 61.9 | P63: 76.6 | Q63: 70 | R63: 62.2 | S63: 76.9 | T63: 70.7 | U63: 62.8 | V63: 77.6 | W63: 69.4 | X63: 61.7 | Y63: 76.2 | Z63: 67.9 | AA63: 60.4 | AB63: 74.6 | AC63: 67.5 | AD63: 60 | AE63: 74.1 | AF63: 66.5 | AG63: 59 | AH63: 73 | AI63: 66.4 | AJ63: 58.9 | AK63: 72.9 | AL63: 66.8 | AM63: 59.3 | AN63: 73.3 | AO63: 66.8 | AP63: 59.3 | AQ63: 73.4 | AR63: 76.4 | AS63: 68.2 | AT63: 83.5 | AU63: 68 | AV63: 60.4 | AW63: 74.6 | AX63: 66.8 | AY63: 59.4 | AZ63: 73.3 | BA63: 66.6 | BB63: 59.2 | BC63: 73.1
A64: NHS Morecambe Bay | B64: 73.4 | C64: 65.7 | D64: 79.9 | E64: 73.8 | F64: 66 | G64: 80.5 | H64: 73.9 | I64: 66.1 | J64: 80.6 | K64: 76 | L64: 68.1 | M64: 82.8 | N64: 73.5 | O64: 65.8 | P64: 80.2 | Q64: 73.3 | R64: 65.5 | S64: 79.9 | T64: 74.7 | U64: 66.8 | V64: 81.4 | W64: 72.5 | X64: 64.9 | Y64: 79 | Z64: 72.7 | AA64: 65.1 | AB64: 79.2 | AC64: 72.8 | AD64: 65.2 | AE64: 79.3 | AF64: 72.5 | AG64: 64.9 | AH64: 79 | AI64: 74.4 | AJ64: 66.7 | AK64: 81.1 | AL64: 72.7 | AM64: 65.1 | AN64: 79.2 | AO64: 72.9 | AP64: 65.2 | AQ64: 79.3 | AR64: 73.3 | AS64: 65.7 | AT64: 79.9 | AU64: 73.4 | AV64: 65.7 | AW64: 80 | AX64: 74.8 | AY64: 67 | AZ64: 81.5 | BA64: 74.9 | BB64: 67 | BC64: 81.5
A65: NHS West Lancashire | B65: 73.6 | C65: 64.9 | D65: 81.2 | E65: 73.7 | F65: 65 | G65: 81.3 | H65: 74.3 | I65: 65.5 | J65: 82 | K65: 74.2 | L65: 65.5 | M65: 81.9 | N65: 73.8 | O65: 65.1 | P65: 81.4 | Q65: 74 | R65: 65.3 | S65: 81.7 | T65: 74.1 | U65: 65.3 | V65: 81.7 | W65: 73.6 | X65: 64.9 | Y65: 81.3 | Z65: 73.8 | AA65: 65.1 | AB65: 81.5 | AC65: 73.6 | AD65: 64.9 | AE65: 81.2 | AF65: 72.9 | AG65: 64.3 | AH65: 80.4 | AI65: 72.8 | AJ65: 64.2 | AK65: 80.3 | AL65: 73.5 | AM65: 64.9 | AN65: 81 | AO65: 74.4 | AP65: 65.7 | AQ65: 82 | AR65: 75.8 | AS65: 66.9 | AT65: 83.5 | AU65: 75.5 | AV65: 66.6 | AW65: 83.2 | AX65: 74.6 | AY65: 65.9 | AZ65: 82.3 | BA65: 74.9 | BB65: 66.1 | BC65: 82.6
A69: Target | B69: 66.7
A70: Significance from target | B70: May : 2016 | C70: June : 2016 | D70: July : 2016 | E70: August : 2016 | F70: September : 2016 | G70: October : 2016 | H70: November : 2016 | I70: December : 2016 | J70: January : 2017 | K70: February : 2017 | L70: March : 2017 | M70: April : 2017 | N70: May : 2017 | O70: June : 2017 | P70: July : 2017 | Q70: August : 2017 | R70: September : 2017 | S70: October : 2017
A71: ENGLAND | B71: =IF(C56>$B$69,"Above",IF(D56<$B$69,"Below","In line")) -> In line | C71: =IF(F56>$B$69,"Above",IF(G56<$B$69,"Below","In line")) -> In line | D71: =IF(I56>$B$69,"Above",IF(J56<$B$69,"Below","In line")) -> In line | E71: =IF(L56>$B$69,"Above",IF(M56<$B$69,"Below","In line")) -> In line | F71: =IF(O56>$B$69,"Above",IF(P56<$B$69,"Below","In line")) -> In line | G71: =IF(R56>$B$69,"Above",IF(S56<$B$69,"Below","In line")) -> In line | H71: =IF(U56>$B$69,"Above",IF(V56<$B$69,"Below","In line")) -> In line | I71: =IF(X56>$B$69,"Above",IF(Y56<$B$69,"Below","In line")) -> In line | J71: =IF(AA56>$B$69,"Above",IF(AB56<$B$69,"Below","In line")) -> In line | K71: =IF(AD56>$B$69,"Above",IF(AE56<$B$69,"Below","In line")) -> In line | L71: =IF(AG56>$B$69,"Above",IF(AH56<$B$69,"Below","In line")) -> In line | M71: =IF(AJ56>$B$69,"Above",IF(AK56<$B$69,"Below","In line")) -> In line | N71: =IF(AM56>$B$69,"Above",IF(AN56<$B$69,"Below","In line")) -> In line | O71: =IF(AP56>$B$69,"Above",IF(AQ56<$B$69,"Below","In line")) -> In line | P71: =IF(AS56>$B$69,"Above",IF(AT56<$B$69,"Below","In line")) -> In line | Q71: =IF(AV56>$B$69,"Above",IF(AW56<$B$69,"Below","In line")) -> In line | R71: =IF(AY56>$B$69,"Above",IF(AZ56<$B$69,"Below","In line")) -> In line | S71: =IF(BB56>$B$69,"Above",IF(BC56<$B$69,"Below","In line")) -> In line
A72: LANCASHIRE AND SOUTH CUMBRIA | B72: =IF(C57>$B$69,"Above",IF(D57<$B$69,"Below","In line")) -> In line | C72: =IF(F57>$B$69,"Above",IF(G57<$B$69,"Below","In line")) -> In line | D72: =IF(I57>$B$69,"Above",IF(J57<$B$69,"Below","In line")) -> In line | E72: =IF(L57>$B$69,"Above",IF(M57<$B$69,"Below","In line")) -> In line | F72: =IF(O57>$B$69,"Above",IF(P57<$B$69,"Below","In line")) -> In line | G72: =IF(R57>$B$69,"Above",IF(S57<$B$69,"Below","In line")) -> In line | H72: =IF(U57>$B$69,"Above",IF(V57<$B$69,"Below","In line")) -> In line | I72: =IF(X57>$B$69,"Above",IF(Y57<$B$69,"Below","In line")) -> In line | J72: =IF(AA57>$B$69,"Above",IF(AB57<$B$69,"Below","In line")) -> In line | K72: =IF(AD57>$B$69,"Above",IF(AE57<$B$69,"Below","In line")) -> In line | L72: =IF(AG57>$B$69,"Above",IF(AH57<$B$69,"Below","In line")) -> In line | M72: =IF(AJ57>$B$69,"Above",IF(AK57<$B$69,"Below","In line")) -> In line | N72: =IF(AM57>$B$69,"Above",IF(AN57<$B$69,"Below","In line")) -> In line | O72: =IF(AP57>$B$69,"Above",IF(AQ57<$B$69,"Below","In line")) -> In line | P72: =IF(AS57>$B$69,"Above",IF(AT57<$B$69,"Below","In line")) -> In line | Q72: =IF(AV57>$B$69,"Above",IF(AW57<$B$69,"Below","In line")) -> In line | R72: =IF(AY57>$B$69,"Above",IF(AZ57<$B$69,"Below","In line")) -> In line | S72: =IF(BB57>$B$69,"Above",IF(BC57<$B$69,"Below","In line")) -> Above
A73: NHS Blackburn with Darwen | B73: In line | C73: In line | D73: In line | E73: In line | F73: In line | G73: In line | H73: In line | I73: In line | J73: In line | K73: In line | L73: In line | M73: In line | N73: In line | O73: In line | P73: In line | Q73: In line | R73: In line | S73: Above
A74: NHS Blackpool | B74: Above | C74: Above | D74: Above | E74: Above | F74: Above | G74: Above | H74: Above | I74: Above | J74: Above | K74: Above | L74: Above | M74: Above | N74: Above | O74: Above | P74: Above | Q74: Above | R74: Above | S74: Above
A75: NHS Chorley and South Ribble | B75: In line | C75: In line | D75: In line | E75: In line | F75: In line | G75: In line | H75: In line | I75: In line | J75: In line | K75: In line | L75: In line | M75: In line | N75: In line | O75: In line | P75: In line | Q75: In line | R75: In line | S75: In line
A76: NHS East Lancashire | B76: In line | C76: In line | D76: In line | E76: In line | F76: In line | G76: In line | H76: In line | I76: In line | J76: In line | K76: In line | L76: In line | M76: In line | N76: In line | O76: In line | P76: In line | Q76: In line | R76: In line | S76: In line
A77: NHS Fylde & Wyre | B77: In line | C77: In line | D77: In line | E77: In line | F77: In line | G77: In line | H77: In line | I77: In line | J77: In line | K77: In line | L77: In line | M77: Above | N77: Above | O77: Above | P77: Above | Q77: Above | R77: Above | S77: Above
A78: NHS Greater Preston | B78: In line | C78: In line | D78: In line | E78: In line | F78: In line | G78: In line | H78: In line | I78: In line | J78: In line | K78: In line | L78: In line | M78: In line | N78: In line | O78: In line | P78: Above | Q78: In line | R78: In line | S78: In line
A79: NHS Morecambe Bay | B79: In line | C79: In line | D79: In line | E79: Above | F79: In line | G79: In line | H79: Above | I79: In line | J79: In line | K79: In line | L79: In line | M79: In line | N79: In line | O79: In line | P79: In line | Q79: In line | R79: Above | S79: Above
A80: NHS West Lancashire | B80: In line | C80: In line | D80: In line | E80: In line | F80: In line | G80: In line | H80: In line | I80: In line | J80: In line | K80: In line | L80: In line | M80: In line | N80: In line | O80: In line | P80: Above | Q80: In line | R80: In line | S80: In line
A85: Diagnosis rate trend chart data | B85: May : 2016 | C85: June : 2016 | D85: July : 2016 | E85: August : 2016 | F85: September : 2016 | G85: October : 2016 | H85: November : 2016 | I85: December : 2016 | J85: January : 2017 | K85: February : 2017 | L85: March : 2017 | M85: April : 2017 | N85: May : 2017 | O85: June : 2017 | P85: July : 2017 | Q85: August : 2017 | R85: September : 2017 | S85: October : 2017
A86: Target | B86: 66.7 | C86: 66.7 | D86: 66.7 | E86: 66.7 | F86: 66.7 | G86: 66.7 | H86: 66.7 | I86: 66.7 | J86: 66.7 | K86: 66.7 | L86: 66.7 | M86: 66.7 | N86: 66.7 | O86: 66.7 | P86: 66.7 | Q86: 66.7 | R86: 66.7 | S86: 66.7
A87: ENGLAND | B87: 67.3 | C87: 67.6 | D87: 67.8 | E87: 68 | F87: 68.1 | G87: 68.2 | H87: 68.4 | I87: 68.2 | J87: 67.8 | K87: 67.7 | L87: 67.9 | M87: 67.9 | N87: 67.8 | O87: 68 | P87: 68 | Q87: 68.2 | R87: 68.2 | S87: 68.6
A88: LANCASHIRE AND SOUTH CUMBRIA | B88: 71.3 | C88: 71.9 | D88: 72 | E88: 72.6 | F88: 72.4 | G88: 72.4 | H88: 72.9 | I88: 72.1 | J88: 71.6 | K88: 71.7 | L88: 71.8 | M88: 72.6 | N88: 72.1 | O88: 72.5 | P88: 73.2 | Q88: 73.6 | R88: 73.9 | S88: 74.3
A89: NHS Blackburn with Darwen | B89: 70.8 | C89: 71.1 | D89: 70.7 | E89: 69.9 | F89: 69.6 | G89: 70 | H89: 70.2 | I89: 69.4 | J89: 69.3 | K89: 69.7 | L89: 69.9 | M89: 69.8 | N89: 69.8 | O89: 70.2 | P89: 74.2 | Q89: 74 | R89: 75.1 | S89: 76.9
A90: NHS Blackpool | B90: 75.1 | C90: 75.7 | D90: 75.9 | E90: 76.8 | F90: 77.7 | G90: 78.4 | H90: 78.4 | I90: 78.7 | J90: 77.7 | K90: 78 | L90: 78.4 | M90: 78.5 | N90: 78.4 | O90: 78.9 | P90: 79.4 | Q90: 80 | R90: 80.4 | S90: 80.8
A91: NHS Chorley and South Ribble | B91: 67.6 | C91: 68.3 | D91: 68.5 | E91: 68.4 | F91: 68.6 | G91: 68.2 | H91: 68 | I91: 67.7 | J91: 67.7 | K91: 67.6 | L91: 67.7 | M91: 68.1 | N91: 67.8 | O91: 68.4 | P91: 69.1 | Q91: 69 | R91: 69.6 | S91: 69.8
A92: NHS East Lancashire | B92: 71 | C92: 72.1 | D92: 70.7 | E92: 70.7 | F92: 71.5 | G92: 71.1 | H92: 71.2 | I92: 71 | J92: 70.4 | K92: 70.5 | L92: 71.3 | M92: 71.7 | N92: 71.3 | O92: 71.7 | P92: 67.5 | Q92: 72.1 | R92: 72.2 | S92: 73.3
A93: NHS Fylde & Wyre | B93: 70.7 | C93: 70.9 | D93: 72 | E93: 72.2 | F93: 72.8 | G93: 73.2 | H93: 74.1 | I93: 73.5 | J93: 72.5 | K93: 73.3 | L93: 74.1 | M93: 75.4 | N93: 75.6 | O93: 76.1 | P93: 75.8 | Q93: 77.7 | R93: 77.3 | S93: 77.4
A94: NHS Greater Preston | B94: 66.7 | C94: 67.4 | D94: 68.8 | E94: 69.4 | F94: 69.8 | G94: 70 | H94: 70.7 | I94: 69.4 | J94: 67.9 | K94: 67.5 | L94: 66.5 | M94: 66.4 | N94: 66.8 | O94: 66.8 | P94: 76.4 | Q94: 68 | R94: 66.8 | S94: 66.6
A95: NHS Morecambe Bay | B95: 73.4 | C95: 73.8 | D95: 73.9 | E95: 76 | F95: 73.5 | G95: 73.3 | H95: 74.7 | I95: 72.5 | J95: 72.7 | K95: 72.8 | L95: 72.5 | M95: 74.4 | N95: 72.7 | O95: 72.9 | P95: 73.3 | Q95: 73.4 | R95: 74.8 | S95: 74.9
A96: NHS West Lancashire | B96: 73.6 | C96: 73.7 | D96: 74.3 | E96: 74.2 | F96: 73.8 | G96: 74 | H96: 74.1 | I96: 73.6 | J96: 73.8 | K96: 73.6 | L96: 72.9 | M96: 72.8 | N96: 73.5 | O96: 74.4 | P96: 75.8 | Q96: 75.5 | R96: 74.6 | S96: 74.9
B99: May : 2016 | C99: June : 2016 | D99: July : 2016 | E99: August : 2016 | F99: September : 2016 | G99: October : 2016 | H99: November : 2016 | I99: December : 2016 | J99: January : 2017 | K99: February : 2017 | L99: March : 2017 | M99: April : 2017 | N99: May : 2017 | O99: June : 2017 | P99: July : 2017 | Q99: August : 2017 | R99: September : 2017 | S99: October : 2017
A100: NHS Blackburn with Darwen | B100: =SUM(IF($A$87:$A$96=$A$100,IF($B$85:$S$85=B99,$B$87:$S$96))) -> 70.8 | C100: =SUM(IF($A$87:$A$96=$A$100,IF($B$85:$S$85=C99,$B$87:$S$96))) -> 71.1 | D100: =SUM(IF($A$87:$A$96=$A$100,IF($B$85:$S$85=D99,$B$87:$S$96))) -> 70.7 | E100: =SUM(IF($A$87:$A$96=$A$100,IF($B$85:$S$85=E99,$B$87:$S$96))) -> 69.9 | F100: =SUM(IF($A$87:$A$96=$A$100,IF($B$85:$S$85=F99,$B$87:$S$96))) -> 69.6 | G100: =SUM(IF($A$87:$A$96=$A$100,IF($B$85:$S$85=G99,$B$87:$S$96))) -> 70 | H100: =SUM(IF($A$87:$A$96=$A$100,IF($B$85:$S$85=H99,$B$87:$S$96))) -> 70.2 | I100: =SUM(IF($A$87:$A$96=$A$100,IF($B$85:$S$85=I99,$B$87:$S$96))) -> 69.4 | J100: =SUM(IF($A$87:$A$96=$A$100,IF($B$85:$S$85=J99,$B$87:$S$96))) -> 69.3 | K100: =SUM(IF($A$87:$A$96=$A$100,IF($B$85:$S$85=K99,$B$87:$S$96))) -> 69.7 | L100: =SUM(IF($A$87:$A$96=$A$100,IF($B$85:$S$85=L99,$B$87:$S$96))) -> 69.9 | M100: =SUM(IF($A$87:$A$96=$A$100,IF($B$85:$S$85=M99,$B$87:$S$96))) -> 69.8 | N100: =SUM(IF($A$87:$A$96=$A$100,IF($B$85:$S$85=N99,$B$87:$S$96))) -> 69.8 | O100: =SUM(IF($A$87:$A$96=$A$100,IF($B$85:$S$85=O99,$B$87:$S$96))) -> 70.2 | P100: =SUM(IF($A$87:$A$96=$A$100,IF($B$85:$S$85=P99,$B$87:$S$96))) -> 74.2 | Q100: =SUM(IF($A$87:$A$96=$A$100,IF($B$85:$S$85=Q99,$B$87:$S$96))) -> 74 | R100: =SUM(IF($A$87:$A$96=$A$100,IF($B$85:$S$85=R99,$B$87:$S$96))) -> 75.1 | S100: =SUM(IF($A$87:$A$96=$A$100,IF($B$85:$S$85=S99,$B$87:$S$96))) -> 76.9

Sheet Social care support
A1: Dementia in Lancashire
A2: Social care support
A3: Between April 1st 2016 and March 31st 2017 a total of 3,423 individuals received social care support from Lancashire county council, that were also recorded as having dementia diagnosis
L45: Primary Support Reason (clients recorded as having dementia) | M45: 1 Nursing | N45: 2 Residential | O45: 3 Direct payments only | P45: 4 Part direct payment | Q45: 5 Managed personal budget | R45: 6 CASSR support only | S45: Total | T45: % of total
L46: Physical Support - Access and Mobility Only | M46: 78 | N46: 164 | O46: 28 | P46: 23 | Q46: 137 | R46: 23 | S46: 453 | T46: =S46/$S$56 -> 0.1323400526
L47: Physical Support - Personal Care Support | M47: 316 | N47: 712 | O47: 56 | P47: 46 | Q47: 453 | R47: 83 | S47: 1666 | T47: =S47/$S$56 -> 0.4867075665
L48: Sensory Support - Support for Visual Impairment | M48: 2 | N48: 9 | O48: 0 | P48: 0 | Q48: 3 | R48: 1 | S48: 15 | T48: 0.004382120947
L49: Sensory Support - Support for Hearing Impairment | M49: 2 | N49: 9 | O49: 0 | P49: 0 | Q49: 4 | R49: 0 | S49: 15 | T49: 0.004382120947
L50: Sensory Support - Support for Dual Impairment | M50: 1 | N50: 1 | O50: 0 | P50: 0 | Q50: 0 | R50: 0 | S50: 2 | T50: 0.0005842827929
L51: Support with Memory and Cognition | M51: 211 | N51: 473 | O51: 30 | P51: 30 | Q51: 205 | R51: 51 | S51: 1000 | T51: 0.2921413964
L52: Learning Disability Support | M52: 6 | N52: 6 | O52: 1 | P52: 2 | Q52: 36 | R52: 3 | S52: 54 | T52: 0.01577563541
L53: Mental Health Support | M53: 53 | N53: 77 | O53: 8 | P53: 2 | Q53: 29 | R53: 12 | S53: 181 | T53: 0.05287759275
L54: Social Support - Substance Misuse Support | M54: 2 | N54: 2 | O54: 0 | P54: 0 | Q54: 1 | R54: 0 | S54: 5 | T54: 0.001460706982
L55: Social Support - Support for Social Isolation / Other | M55: 5 | N55: 10 | O55: 1 | P55: 0 | Q55: 13 | R55: 3 | S55: 32 | T55: 0.009348524686
L56: Total | M56: 676 | N56: 1463 | O56: 124 | P56: 103 | Q56: 881 | R56: 176 | S56: 3423 | T56: -
A61: Source : Lancashire county council LAS data extract - April 28th 2017

Sheet Hospital activity
F9: Double click to view
F11: All data is for January 2016 to December 2016 (12 months data) unless otherwise stated.

Sheet Dementia prescribing
A1: Dementia in Lancashire
A2: Drugs for dementia
A3: April 2016 - March 2017
A5: CCG Name | B5: Dementia register1 | C5: Time frame | D5: Chapter Name | E5: Section | F5: Section Name | G5: Items | H5: Items prescribed per patient1 | I5: Actual Cost | J5: Actual cost per item | K5: Cost per registered dementia patient2 | L5: NIC | M5: NIC per item | N5: NIC per registered dementia patient2 | O5: Total prescribing cost for this period | P5: % of total cost relating to dementia drugs | Q5: Total prescribing NIC for this period | R5: % of total NIC relating to dementia drugs
A6: NHS Blackburn with Darwen | B6: 1104 | C6: April 2016 - March 2017 | D6: Central Nervous System | E6: 11 | F6: Drugs for Dementia | G6: 6388 | H6: =G6/B6 -> 5.786231884 | I6: 66392.84 | J6: =I6/G6 -> 10.39336882 | K6: =I6/B6 -> 60.13844203 | L6: 71548.19 | M6: =L6/G6 -> 11.20040545 | N6: =L6/B6 -> 64.80814312 | O6: 26632797.76 | P6: =I6/O6 -> 0.002492897689 | Q6: 28608496.73 | R6: =L6/Q6 -> 0.002500941964
A7: NHS Blackpool | B7: 1792 | C7: April 2016 - March 2017 | D7: Central Nervous System | E7: 11 | F7: Drugs for Dementia | G7: 12985 | H7: =G7/B7 -> 7.24609375 | I7: 105440.18 | J7: 8.120152484 | K7: 58.83938616 | L7: 113146.98 | M7: 8.713668079 | N7: 63.1400558 | O7: 32464862.25 | P7: =I7/O7 -> 0.003247824654 | Q7: 34863157.31 | R7: =L7/Q7 -> 0.003245459928
A8: NHS Chorley and South Ribble | B8: 1452 | C8: April 2016 - March 2017 | D8: Central Nervous System | E8: 11 | F8: Drugs for Dementia | G8: 9794 | H8: 6.745179063 | I8: 80581.05 | J8: 8.227593425 | K8: 55.49659091 | L8: 86577.62 | M8: 8.839863182 | N8: 59.62646006 | O8: 28241879.6 | P8: 0.002853246708 | Q8: 30368285.38 | R8: 0.002850922234
A9: NHS East Lancashire | B9: 2981 | C9: April 2016 - March 2017 | D9: Central Nervous System | E9: 11 | F9: Drugs for Dementia | G9: 18903 | H9: 6.341160684 | I9: 207176.39 | J9: 10.95997408 | K9: 69.49895673 | L9: 223247.17 | M9: 11.81014495 | N9: 74.89002684 | O9: 63345735.8 | P9: 0.003270565688 | Q9: 68127247.6 | R9: 0.003276914566
A10: NHS Fylde & Wyre | B10: 1982 | C10: April 2016 - March 2017 | D10: Central Nervous System | E10: 11 | F10: Drugs for Dementia | G10: 15288 | H10: 7.713420787 | I10: 115954.03 | J10: 7.584643511 | K10: 58.50354692 | L10: 124357.81 | M10: 8.134341313 | N10: 62.74359738 | O10: 28061319.15 | P10: 0.004132166039 | Q10: 30157000.21 | R10: 0.004123679714
A11: NHS Greater Preston | B11: 1496 | C11: April 2016 - March 2017 | D11: Central Nervous System | E11: 11 | F11: Drugs for Dementia | G11: 13723 | H11: 9.173128342 | I11: 100573.72 | J11: 7.328843547 | K11: 67.22842246 | L11: 107860.12 | M11: 7.859806165 | N11: 72.0990107 | O11: 32949243.62 | P11: 0.00305238327 | Q11: 35396308.42 | R11: 0.003047213815
A12: NHS Lancashire North | B12: 1578 | C12: April 2016 - March 2017 | D12: Central Nervous System | E12: 11 | F12: Drugs for Dementia | G12: 8300 | H12: 5.25982256 | I12: 107684.88 | J12: 12.97408193 | K12: 68.24136882 | L12: 115883.28 | M12: 13.96184096 | N12: 73.43680608 | O12: 25026456.46 | P12: 0.004302841682 | Q12: 26908298.45 | R12: 0.00430660007
A13: NHS West Lancashire | B13: 1075 | C13: April 2016 - March 2017 | D13: Central Nervous System | E13: 11 | F13: Drugs for Dementia | G13: 7652 | H13: 7.118139535 | I13: 101546.69 | J13: 13.27060768 | K13: 94.46203721 | L13: 109284.19 | M13: 14.28178123 | N13: 101.6597116 | O13: 18913169.76 | P13: 0.005369099484 | Q13: 20334064.94 | R13: 0.005374438919
A14: 1 Based on the August 2017 QoF dementia register extract, except Lancashire North which comes from QOF 2015/16
A15: 2 : Cost per item / total dementia register
A38: Actual Cost
A39: The actual cost is the basic price of the drug less an approximation of discount based on the National Average Discount Percentage (NADP) plus the container cost.
A40: The calculation for the discount amount is the basic price multiplied by the NADP.
A41: This cost includes any Out of Pocket Expenses which have been claimed for that particular item.
A43: Net ingredient Cost (NIC)
A44: The net ingredient cost is the basic price of the drug as stated in Part II Clause 8 of the Drug Tariff.
A45: The NIC does not include out of pocket expenses, except in the Prescribing Cost Analysis (PCA) reports available through the Health and Social Care Information Centre.
A46: This is the cost that is charged back to the Clinical Commissioning Group (CCG) or Area Team (AT).
A48: Drugs for dementia - Items prescribed and NIC per registered patient April 2016 - March 2017
B50: Items prescribed per patient | F50: NIC per registered dementia patient
A51: CCG Name | B51: April to June 2016 | C51: July to September 2016 | D51: October to December 2016 | E51: January - March 2017 | F51: April to June 2016 | G51: July to September 2016 | H51: October to December 2016 | I51: January - March 2017
A52: NHS Blackburn with Darwen | B52: 1.558093347 | C52: 1.610724926 | D52: 1.609731877 | E52: 1.565044687 | F52: 17.48602781 | G52: 20.36961271 | H52: 17.46416087 | I52: 15.73103277
A53: NHS Blackpool | B53: 1.767986615 | C53: 1.768544339 | D53: 1.851645287 | E53: 1.853876185 | F53: 16.37405466 | G53: 15.99179587 | H53: 16.29882878 | I53: 14.44016174
A54: NHS Chorley and South Ribble | B54: 1.652920962 | C54: 1.711340206 | D54: 1.703092784 | E54: 1.663917526 | F54: 15.01525773 | G54: 16.02904467 | H54: 14.87355326 | I54: 13.58566323
A55: NHS East Lancashire | B55: 1.662671836 | C55: 1.671131477 | D55: 1.683115968 | E55: 1.646105041 | F55: 19.583546 | G55: 21.41783574 | H55: 19.1916602 | I55: 18.4982411
A56: NHS Fylde & Wyre | B56: 1.912158809 | C56: 1.894292804 | D56: 1.865012407 | E56: 1.915632754 | F56: 16.03452605 | G56: 15.58260546 | H56: 15.34338958 | I56: 14.75551365
A57: NHS Greater Preston | B57: 2.23 | C57: 2.294666667 | D57: 2.356 | E57: 2.268 | F57: 16.20072667 | G57: 18.74717333 | H57: 19.90502 | I57: 17.05382667
A58: NHS Lancashire North | B58: 1.348542459 | C58: 1.349809886 | D58: 1.27756654 | E58: 1.283903676 | F58: 17.88497465 | G58: 18.90374525 | H58: 19.41891635 | I58: 17.22916984
A59: NHS West Lancashire | B59: 1.839252336 | C59: 1.805607477 | D59: 1.811214953 | E59: 1.695327103 | F59: 25.6251215 | G59: 29.00169159 | H59: 26.19663551 | I59: 21.31130841

Sheet End of life
A1: Dementia in Lancashire
A3: End of life analysis
A4: January 1st - December 31st 2016
A6: Mortality amongst patients registered to the six Lancashire county CCGs, with a recorded dementia diagnoses
A7: Due to data confidentially rules, we do not have access to data relating to patients registered with the Blackburn with Darwen or Blackpool CCGs
A9: Total deaths with a recorded dementia diagnosis : | F9: 1964

Sheet 2017-26 dementia projection
A1: Dementia in Lancashire | O1: 2014-based Subnational Population Projections
A2: District level estimated 65+ dementia prevalence 2017 to 2026 projection
A4: People aged 65 and over predicted to have dementia, by age and gender, projected to 2026 | B4: 2017 | G4: 2026 | L4: Difference | O4: Area | P4: 2017 | Q4: 2026 | R4: % change in 65+ population between 2016 and 2026 | S4: Change rank
B5: 2017 estimated 65+ dementia count | C5: Estimated 2017 65+ population | D5: 65+ Dementia Prevalence | E5: Rank | F5: Significance | G5: 2026 estimated 65+ dementia count | H5: Estimated 2026 65+ population | I5: 65+ Dementia Prevalence | J5: Rank | K5: Significance | L5: 2016 - 2026 Change actual | M5: 2016 - 2026 % change | P5: 65+ | Q5: 65+
A6: England | B6: 644001 | C6: 10063227 | D6: =B6/C6 -> 0.06399547581 | G6: 822645 | H6: 11994067 | I6: =G6/H6 -> 0.06858766088 | L6: =G6-B6 -> 178644 | M6: =(G6-B6)/ABS(B6) -> 0.2773970848 | O6: England | P6: 10063227 | Q6: 11994067 | R6: =(Q6-P6)/P6 -> 0.1918708581
A7: Lancashire-12 | B7: =SUM(B11:B22) -> 15229 | C7: =SUM(C11:C22) -> 244406 | D7: 0.06231025425 | F7: Low | G7: =SUM(G11:G22) -> 19326 | H7: =SUM(H11:H22) -> 284204 | I7: =G7/H7 -> 0.06800045038 | K7: - | L7: 4097 | M7: 0.2690262 | O7: Lancashire-12 | P7: =C7 -> 244406 | Q7: =H7 -> 284204 | R7: 0.1628356096
A8: Lancashire-14 | B8: =SUM(B9:B22) -> 18315 | C8: =SUM(C9:C22) -> 294476 | D8: =B8/C8 -> 0.06219522134 | F8: Low | G8: =SUM(G9:G22) -> 22950 | H8: =SUM(H9:H22) -> 340169 | I8: 0.0674664652 | K8: Low | L8: =G8-B8 -> 4635 | M8: =(G8-B8)/ABS(B8) -> 0.2530712531 | O8: Lancashire-14 | P8: =C8 -> 294476 | Q8: =H8 -> 340169 | R8: 0.1551671444
A9: Blackburn with Darwen | B9: 1251 | C9: 21417 | D9: =B9/C9 -> 0.05841154223 | E9: =RANK(D9,$D$9:$D$22) -> 13 | F9: Low | G9: 1511 | H9: 24955 | I9: =G9/H9 -> 0.06054898818 | J9: =RANK(I9,$I$9:$I$22) -> 14 | K9: Low | L9: =G9-B9 -> 260 | M9: =(G9-B9)/ABS(B9) -> 0.207833733 | O9: Blackburn with Darwen | P9: 21417 | Q9: 24955 | R9: 0.1651958724 | S9: =RANK(R9,$R$9:$R$22)& "/" & COUNTA($O$9:$O$22) -> 6/14
A10: Blackpool | B10: 1835 | C10: 28653 | D10: =B10/C10 -> 0.06404215963 | E10: =RANK(D10,$D$9:$D$22) -> 4 | F10: - | G10: 2113 | H10: 31010 | I10: =G10/H10 -> 0.0681393099 | J10: =RANK(I10,$I$9:$I$22) -> 6 | K10: - | L10: =G10-B10 -> 278 | M10: =(G10-B10)/ABS(B10) -> 0.1514986376 | O10: Blackpool | P10: 28653 | Q10: 31010 | R10: 0.08226014728 | S10: =RANK(R10,$R$9:$R$22)& "/" & COUNTA($O$9:$O$22) -> 14/14
A11: Burnley | B11: 984 | C11: 16108 | D11: 0.06108765831 | E11: 7 | F11: - | G11: 1206 | H11: 18338 | I11: 0.06576507798 | J11: 11 | K11: - | L11: 222 | M11: 0.2256097561 | O11: Burnley | P11: 16108 | Q11: 18338 | R11: 0.1384405264 | S11: 11/14
A12: Chorley | B12: 1316 | C12: 22617 | D12: =B12/C12 -> 0.05818632002 | E12: 14 | F12: Low | G12: 1846 | H12: 27732 | I12: 0.06656570027 | J12: 8 | K12: - | L12: 530 | M12: 0.4027355623 | O12: Chorley | P12: 22617 | Q12: 27732 | R12: =(Q12-P12)/P12 -> 0.2261573153 | S12: 1/14
A13: Fylde | B13: 1419 | C13: 21034 | D13: 0.06746220405 | E13: 1 | F13: High | G13: 1795 | H13: 25031 | I13: 0.07171107826 | J13: 1 | K13: - | L13: 376 | M13: 0.2649753347 | O13: Fylde | P13: 21034 | Q13: 25031 | R13: 0.1900256727 | S13: 3/14
A14: Hyndburn | B14: 880 | C14: 14756 | D14: 0.05963675793 | E14: 11 | F14: Low | G14: 1106 | H14: 16753 | I14: 0.06601802662 | J14: 9 | K14: - | L14: 226 | M14: 0.2568181818 | O14: Hyndburn | P14: 14756 | Q14: 16753 | R14: 0.1353347791 | S14: 13/14
A15: Lancaster | B15: 1829 | C15: 28474 | D15: 0.06423403807 | E15: 3 | F15: - | G15: 2242 | H15: 32606 | I15: 0.06876035086 | J15: 5 | K15: - | L15: 413 | M15: 0.2258064516 | O15: Lancaster | P15: 28474 | Q15: 32606 | R15: 0.1451148416 | S15: 9/14
A16: Pendle | B16: 1010 | C16: 16740 | D16: 0.06033452808 | E16: 10 | F16: - | G16: 1250 | H16: 19365 | I16: 0.06454944487 | J16: 12 | K16: Low | L16: 240 | M16: 0.2376237624 | O16: Pendle | P16: 16740 | Q16: 19365 | R16: 0.1568100358 | S16: 7/14
A17: Preston | B17: 1332 | C17: 21013 | D17: 0.06338933041 | E17: 6 | F17: - | G17: 1586 | H17: 24045 | I17: 0.06595965897 | J17: 10 | K17: - | L17: 254 | M17: 0.1906906907 | O17: Preston | P17: 21013 | Q17: 24045 | R17: 0.144291629 | S17: 10/14
A18: Ribble Valley | B18: 875 | C18: 13770 | D18: 0.06354393609 | E18: 5 | F18: - | G18: 1154 | H18: 16314 | I18: 0.07073679049 | J18: 2 | K18: - | L18: 279 | M18: 0.3188571429 | O18: Ribble Valley | P18: 13770 | Q18: 16314 | R18: 0.1847494553 | S18: 4/14
A19: Rossendale | B19: 753 | C19: 12740 | D19: 0.05910518053 | E19: 12 | F19: Low | G19: 983 | H19: 15315 | I19: 0.06418543911 | J19: 13 | K19: Low | L19: 230 | M19: 0.3054448871 | O19: Rossendale | P19: 12740 | Q19: 15315 | R19: 0.2021193093 | S19: 2/14
A20: South Ribble | B20: 1403 | C20: 23067 | D20: 0.06082282048 | E20: 9 | F20: - | G20: 1830 | H20: 26891 | I20: 0.06805250827 | J20: 7 | K20: - | L20: 427 | M20: 0.3043478261 | O20: South Ribble | P20: 23067 | Q20: 26891 | R20: 0.1657779512 | S20: 5/14
A21: West Lancashire | B21: 1489 | C21: 24466 | D21: 0.06085996894 | E21: 8 | F21: Low | G21: 1956 | H21: 28169 | I21: 0.06943803472 | J21: 4 | K21: - | L21: 467 | M21: 0.3136333109 | O21: West Lancashire | P21: 24466 | Q21: 28169 | R21: 0.1513528979 | S21: 8/14
A22: Wyre | B22: 1939 | C22: 29621 | D22: 0.06546031532 | E22: 2 | F22: - | G22: 2372 | H22: 33645 | I22: 0.07050081736 | J22: 3 | K22: - | L22: 433 | M22: 0.223310985 | O22: Wyre | P22: 29621 | Q22: 33645 | R22: 0.1358495662 | S22: 12/14
A24: This colour highlights the districst that will see the largest increases in their 65+ demenia population | O24: Highlights the districts that will see the largest increase in their 65+ population
B26: 2017 | F26: 2026 | J26: Difference
A27: Lancashire localities (based on districts) | B27: Estimated 65+ dementia count | C27: Estimated 65+ population | D27: 65+ Dementia Prevalence | E27: Significance | F27: Estimated 65+ dementia count | G27: Estimated 65+ population | H27: 65+ Dementia Prevalence | I27: Significance | J27: 2016 - 2026 Change actual | K27: 2016 - 2026 % change
A29: Central Lancashire | B29: =SUM(B12,B17,B20,B21) -> 5540 | C29: =SUM(C12,C17,C20,C21) -> 91163 | D29: =SUM(B12,B17,B20,B21)/SUM(C12,C17,C20,C21) -> 0.06077026864 | E29: Low | F29: =SUM(G12,G17,G20,G21) -> 7218 | G29: =SUM(H12,H17,H20,H21) -> 106837 | H29: =F29/G29 -> 0.06756086375 | I29: - | J29: =F29-B29 -> 1678 | K29: =(F29-B29)/ABS(B29) -> 0.3028880866
A30: East Lancashire | B30: =SUM(B11,B14,B16,B18,B19) -> 4502 | C30: =SUM(C11,C14,C16,C18,C19) -> 74114 | D30: =SUM(B11,B14,B16,B18,B19)/SUM(C11,C14,C16,C18,C19) -> 0.06074425884 | E30: Low | F30: =SUM(G11,G14,G16,G18,G19) -> 5699 | G30: =SUM(H11,H14,H16,H18,H19) -> 86085 | H30: =F30/G30 -> 0.06620200964 | I30: Low | J30: =F30-B30 -> 1197 | K30: =(F30-B30)/ABS(B30) -> 0.2658818303
A31: North Lancashire | B31: =SUM(B13,B22,B15) -> 5187 | C31: =SUM(C13,C22,C15) -> 79129 | D31: =SUM(B15,B22,B13)/SUM(C13,C15,C22) -> 0.06555118857 | E31: - | F31: =SUM(G13,G15,G22) -> 6409 | G31: =SUM(H13,H15,H22) -> 91282 | H31: =F31/G31 -> 0.0702109945 | I31: - | J31: =F31-B31 -> 1222 | K31: =(F31-B31)/ABS(B31) -> 0.2355889724
A32: Fylde Coast vanguard area | B32: =SUM(B10,B22,B13) -> 5193 | C32: =SUM(C10,C22,C13) -> 79308 | D32: =SUM(B10,B13,B22)/SUM(C10,C13,C22) -> 0.06547889242 | E32: - | F32: =SUM(G13,G10,G22) -> 6280 | G32: =SUM(H13,H10,H22) -> 89686 | H32: =F32/G32 -> 0.07002207702 | I32: - | J32: =F32-B32 -> 1087 | K32: =(F32-B32)/ABS(B32) -> 0.2093202388
A33: Pennine Lancashire | B33: =B9+B30 -> 5753 | C33: =C9+C30 -> 95531 | D33: =SUM(B9,B11,B14,B16,B18,B19)/SUM(C9,C11,C14,C16,C18,C19) -> 0.06022128942 | E33: Low | F33: =F30+G9 -> 7210 | G33: =G30+H9 -> 111040 | H33: =F33/G33 -> 0.0649315562 | I33: Low | J33: =F33-B33 -> 1457 | K33: =(F33-B33)/ABS(B33) -> 0.2532591691
A35: Source : NHS England dementia prevalence estimates combined with the ONS 2014-based population projections. Showing the total number of people living with dementia in 2017 and 2026, should the current estimated prevalence levels remain the same.

Sheet End of life 2 (hidden)
A1: Dementia in Lancashire
A3: End of life analysis
A4: January 1st - December 31st 2016
A6: Mortality amongst patients registered to the six Lancashire county CCGs, with a recorded dementia diagnoses
A7: Due to data confidentually rules, we do have access to data relating to patients registered with the Blackburn with Darwen or Blackpool CCGs
A9: Total deaths | B9: 1964
A17: Registered CCG | B17: Count | C17: % | M17: IMD Quintile|2015 (1 = most deprived, 5 = least) | N17: Total | O17: %
A18: NHS WEST LANCASHIRE CCG | B18: 227 | C18: =B18/$B$24 -> 0.1155804481 | M18: Quintile 1 | N18: 351 | O18: =N18/$N$24 -> 0.1787169043
A19: NHS CHORLEY AND SOUTH RIBBLE CCG | B19: 252 | C19: 0.1283095723 | M19: Quintile 2 | N19: 467 | O19: 0.2377800407
A20: NHS GREATER PRESTON CCG | B20: 295 | C20: 0.150203666 | M20: Quintile 3 | N20: 362 | O20: 0.1843177189
A21: NHS LANCASHIRE NORTH CCG | B21: 320 | C21: 0.1629327902 | M21: Quintile 4 | N21: 441 | O21: 0.2245417515
A22: NHS FYLDE & WYRE CCG | B22: 332 | C22: 0.1690427699 | M22: Quintile 5 | N22: 302 | O22: 0.1537678208
A23: NHS EAST LANCASHIRE CCG | B23: 538 | C23: 0.2739307536 | M23: (blank) | N23: 41 | O23: 0.02087576375
A24: Grand Total | B24: =SUM(B18:B23) -> 1964 | M24: Grand Total | N24: 1964
A26: Area | B26: Count | C26: %
A27: Other | B27: 59 | C27: =B27/$B$40 -> 0.0300407332
A28: Ribble Valley | B28: 82 | C28: 0.04175152749
A29: Rossendale | B29: 98 | C29: 0.04989816701
A30: Pendle | B30: 113 | C30: 0.05753564155 | M30: Grouping | N30: Total | O30: %
A31: Hyndburn | B31: 113 | C31: 0.05753564155 | M31: Care home | N31: 1238 | O31: =N31/$N$36 -> 0.6303462322
A32: Burnley | B32: 127 | C32: 0.06466395112 | M32: Home | N32: 164 | O32: =N32/$N$36 -> 0.08350305499
A33: South Ribble | B33: 137 | C33: 0.06975560081 | M33: Hospice | N33: 7 | O33: =N33/$N$36 -> 0.003564154786
A34: Fylde | B34: 182 | C34: 0.09266802444 | M34: Hospital | N34: 548 | O34: =N34/$N$36 -> 0.2790224033 | AC34: Registered CCG | AD34: No | AE34: Yes | AF34: Grand Total | AG34: No (%) | AH34: Yes (%)
A35: Chorley | B35: 184 | C35: 0.09368635438 | M35: Other places | N35: 7 | O35: =N35/$N$36 -> 0.003564154786 | AC35: Total | AD35: 931 | AE35: 1033 | AF35: 1964 | AG35: =AE35/AF35 -> 0.5259674134 | AH35: =AD35/AF35 -> 0.4740325866
A36: Wyre | B36: 185 | C36: 0.09419551935 | M36: Grand Total | N36: 1964 | AC36: NHS CHORLEY AND SOUTH RIBBLE CCG | AD36: 114 | AE36: 138 | AF36: 252 | AG36: 0.5476190476 | AH36: 0.4523809524
A37: Preston | B37: 189 | C37: 0.09623217923 | AC37: NHS EAST LANCASHIRE CCG | AD37: 241 | AE37: 297 | AF37: 538 | AG37: 0.5520446097 | AH37: 0.4479553903
A38: West Lancashire | B38: 209 | C38: 0.1064154786 | AC38: NHS FYLDE & WYRE CCG | AD38: 146 | AE38: 186 | AF38: 332 | AG38: 0.5602409639 | AH38: 0.4397590361
A39: Lancaster | B39: 286 | C39: 0.1456211813 | AC39: NHS GREATER PRESTON CCG | AD39: 113 | AE39: 182 | AF39: 295 | AG39: 0.6169491525 | AH39: 0.3830508475
B40: 1964 | AC40: NHS LANCASHIRE NORTH CCG | AD40: 164 | AE40: 156 | AF40: 320 | AG40: 0.4875 | AH40: 0.5125
AC41: NHS WEST LANCASHIRE CCG | AD41: 153 | AE41: 74 | AF41: 227 | AG41: 0.3259911894 | AH41: 0.6740088106
I43: ICD10 Chapter | J43: Total | K43: %
A44: DSR Age Groups | B44: Female | C44: Male | D44: Female | E44: Male | I44: Mental and behavioural disorders | J44: 1042 | K44: =J44/$J$60 -> 0.5305498982
A45: <65 | B45: 5 | C45: 7 | D45: =B45/$B$52 -> 0.003927729772 | E45: =C45/$C$52 -> 0.01013024602 | I45: Diseases of the nervous system | J45: 475 | K45: =J45/$J$60 -> 0.2418533605
A46: 65-69 | B46: 7 | C46: 13 | D46: 0.005498821681 | E46: =C46/$C$52 -> 0.01881331404 | I46: Diseases of the circulatory system | J46: 174 | K46: 0.08859470468
A47: 70-74 | B47: 36 | C47: 40 | D47: 0.02827965436 | E47: 0.05788712012 | I47: Neoplasms | J47: 98 | K47: 0.04989816701
A48: 75-79 | B48: 104 | C48: 93 | D48: 0.08169677926 | E48: 0.1345875543 | I48: Diseases of the respiratory system | J48: 69 | K48: 0.03513238289
A49: 80-84 | B49: 214 | C49: 168 | D49: 0.1681068342 | E49: 0.2431259045 | I49: Diseases of the digestive system | J49: 35 | K49: 0.01782077393
A50: 85-89 | B50: 360 | C50: 211 | D50: 0.2827965436 | E50: 0.3053545586 | I50: Certain infectious and parasitic diseases | J50: 23 | K50: 0.0117107943
A51: 90+ | B51: 547 | C51: 159 | D51: 0.4296936371 | E51: 0.2301013025 | I51: External causes of morbidity and mortality | J51: 14 | K51: 0.007128309572
A52: Grand Total | B52: =SUM(B45:B51) -> 1273 | C52: =SUM(C45:C51) -> 691 | D52: =B52/SUM(B52:C52) -> 0.6481670061 | E52: =C52/SUM(B52:C52) -> 0.3518329939 | I52: Diseases of the genitourinary system | J52: 11 | K52: 0.005600814664
I53: Endocrine, nutritional and metabolic diseases | J53: 8 | K53: 0.004073319756
I54: Diseases of the musculoskeletal system and connective tissue | J54: 6 | K54: 0.003054989817
I55: Congenital malformations, deformations and chromosomal abnormalities | J55: 5 | K55: 0.002545824847
I56: Diseases of the skin and subcutaneous tissue | J56: 3 | K56: 0.001527494908
I57: Diseases of the blood and blood-forming organs and certain disorders involving the immune mechanism | J57: 1 | K57: 0.0005091649695
I60: Grand Total | J60: 1964
